{"text_format":"3","workbook":"xlsx","n_sheets":3,"sheets":["Datos del plan de desarrollo","Plan de desarrollo ágil","Información"],"not_rendered":{"defined_names":5},"read":"whole","date_system":"1900"}

{"sheet":"Datos del plan de desarrollo","index":0,"n_rows":13,"n_cols":7,"rows_kept":13,"merged":[[12,1,12,4]]}
["Cree un plan de desarrollo ágil especificando los hitos o actividades importantes en la tabla Datos del plan de desarrollo de esta hoja de cálculo.\nEl título de esta hoja de cálculo se encuentra en la celda B1. \nPara obtener información sobre cómo usar esta hoja de cálculo, incluidas las instrucciones para lectores de pantalla, consulte la hoja de cálculo Información.\nDesplácese hacia abajo por la columna A para obtener más instrucciones.","Datos de la escala de tiempo ágil"]
["Los encabezados de la tabla se encuentran en las celdas de B2 a E2. Use filtros de encabezado para ordenar la tabla y buscar elementos concretos.\nEl Plan de desarrollo ágil funciona mejor cuando la tabla está ordenada en orden ascendente según Prioridad y, después, según Hito o actividad.\nLos datos de ejemplo se encuentran en la tabla Datos del plan de desarrollo en las celdas de B3 a E12. \nCuando se complete un hito o una actividad, actualice el campo Resultado correspondiente para mostrar los resultados en la hoja de cálculo de Plan de desarrollo ágil. Escriba “Sin cambios” para destacar los hitos que no tienen impacto.\nVaya a la celda A13 para pasar a la instrucción siguiente.\n","Objetivo","Hito o actividad","Prioridad","Resultado",null,"<-- Ordene la tabla según Prioridad y según Hito o actividad, en orden ascendente."]
[null,"Actual","Actividad 1\nCrear un prototipo","1 - Alta",null,null,"<-- Agregue un resultado a cada hito completado. Escriba “Sin cambios” para destacar los hitos que no tienen impacto."]
[null,"A corto plazo","Actividad 2\nProbar el prototipo","1 - Alta"]
[null,"Actual","Actividad 6","1 - Alta"]
[null,"Futuro","Actividad 7\nExternalizar el desarrollo de la primera fase de implementación","1 - Alta"]
[null,"Completado","Actividad 9\nPrimera fase aprobada","1 - Alta","Disminución del 10 %"]
[null,"Futuro","Actividad 10","2 - Media"]
[null,"A corto plazo","Actividad 8","2 - Media"]
[null,"Completado","Actividad 3","3 - Baja","Sin cambios"]
[null,"Futuro","Actividad 4","3 - Baja"]
[null,"Actual","Actividad 5","3 - Baja"]
["Para agregar elementos nuevos, inserte filas nuevas en la tabla encima de esta línea.\nEsta es la última instrucción de esta hoja de cálculo.","Para agregar elementos nuevos, inserte filas nuevas encima de esta línea."]

{"sheet":"Plan de desarrollo ágil","index":1,"n_rows":100,"n_cols":8,"rows_kept":100}
["En esta hoja de cálculo hay un plan de desarrollo ágil que muestra los hitos y las actividades de la hoja Datos del plan de desarrollo. \nEl título se encuentra en la celda B1. \nLos resultados que contienen la frase “Sin cambios” se resaltan en color naranja claro, rgb (255, 230, 210).\nLos hitos o actividades completados se resaltan en color verde claro, rgb (237,251,219).","Plan de desarrollo ágil"]
["Los encabezados del gráfico se encuentran en las celdas B2, D2, F2 y H2. Son los siguientes: Completado, Actual, A corto plazo y Futuro. Modifique estos encabezados para cambiar los valores de selección de Objetivo en la tabla Datos del plan de desarrollo en la hoja Datos del plan de desarrollo.\nLas celdas de B3 a H20 contienen los hitos y las actividades de los encabezados de esta fila. \nLos hitos y las actividades se crean en la hoja de cálculo Datos del plan de desarrollo.\nNo modifique ni elimine entradas en esta hoja de cálculo. Actualice la tabla Datos del plan de desarrollo en la hoja de cálculo Datos del plan de desarrollo para actualizar el contenido de esta hoja.\nEsta es la última instrucción de esta hoja de cálculo.","Completado",null,"Actual",null,"A corto plazo",null,"Futuro"]
[null,{"$f":"IFERROR(INDEX(Actividad,SMALL(IF(Objetivo=$B$2,ROW(Actividad)-MIN(ROW(Actividad))+1),ROWS($B$3:B3)))&\" \"&CHAR(10)&(INDEX(Resultado,SMALL(IF(Objetivo=$B$2,ROW(Resultado)-MIN(ROW(Resultado))+1),ROWS($B$3:B3))))&CHAR(10),\"\")","v":"Actividad 9\nPrimera fase aprobada \nDisminución del 10 %\n"},null,{"$f":"IFERROR(INDEX(Actividad,SMALL(IF(Objetivo=$D$2,ROW(Actividad)-MIN(ROW(Actividad))+1),ROWS($B$3:B3)))&CHAR(10),\"\")","v":"Actividad 1\nCrear un prototipo\n"},null,{"$f":"IFERROR(INDEX(Actividad,SMALL(IF(Objetivo=$F$2,ROW(Actividad)-MIN(ROW(Actividad))+1),ROWS($B$3:B3)))&CHAR(10),\"\")","v":"Actividad 2\nProbar el prototipo\n"},null,{"$f":"IFERROR(INDEX(Actividad,SMALL(IF(Objetivo=$H$2,ROW(Actividad)-MIN(ROW(Actividad))+1),ROWS($B$3:B3)))&CHAR(10),\"\")","v":"Actividad 7\nExternalizar el desarrollo de la primera fase de implementación\n"}]
[null,{"$f":"IFERROR(INDEX(Actividad,SMALL(IF(Objetivo=$B$2,ROW(Actividad)-MIN(ROW(Actividad))+1),ROWS($B$3:B4)))&\" \"&CHAR(10)&(INDEX(Resultado,SMALL(IF(Objetivo=$B$2,ROW(Resultado)-MIN(ROW(Resultado))+1),ROWS($B$3:B4))))&CHAR(10),\"\")","v":"Actividad 3 \nSin cambios\n"},null,{"$f":"IFERROR(INDEX(Actividad,SMALL(IF(Objetivo=$D$2,ROW(Actividad)-MIN(ROW(Actividad))+1),ROWS($B$3:B4)))&CHAR(10),\"\")","v":"Actividad 6\n"},null,{"$f":"IFERROR(INDEX(Actividad,SMALL(IF(Objetivo=$F$2,ROW(Actividad)-MIN(ROW(Actividad))+1),ROWS($B$3:B4)))&CHAR(10),\"\")","v":"Actividad 8\n"},null,{"$f":"IFERROR(INDEX(Actividad,SMALL(IF(Objetivo=$H$2,ROW(Actividad)-MIN(ROW(Actividad))+1),ROWS($B$3:B4)))&CHAR(10),\"\")","v":"Actividad 10\n"}]
[null,{"$f":"IFERROR(INDEX(Actividad,SMALL(IF(Objetivo=$B$2,ROW(Actividad)-MIN(ROW(Actividad))+1),ROWS($B$3:B5)))&\" \"&CHAR(10)&(INDEX(Resultado,SMALL(IF(Objetivo=$B$2,ROW(Resultado)-MIN(ROW(Resultado))+1),ROWS($B$3:B5))))&CHAR(10),\"\")","v":""},null,{"$f":"IFERROR(INDEX(Actividad,SMALL(IF(Objetivo=$D$2,ROW(Actividad)-MIN(ROW(Actividad))+1),ROWS($B$3:B5)))&CHAR(10),\"\")","v":"Actividad 5\n"},null,{"$f":"IFERROR(INDEX(Actividad,SMALL(IF(Objetivo=$F$2,ROW(Actividad)-MIN(ROW(Actividad))+1),ROWS($B$3:B5)))&CHAR(10),\"\")","v":""},null,{"$f":"IFERROR(INDEX(Actividad,SMALL(IF(Objetivo=$H$2,ROW(Actividad)-MIN(ROW(Actividad))+1),ROWS($B$3:B5)))&CHAR(10),\"\")","v":"Actividad 4\n"}]
[null,{"$f":"IFERROR(INDEX(Actividad,SMALL(IF(Objetivo=$B$2,ROW(Actividad)-MIN(ROW(Actividad))+1),ROWS($B$3:B6)))&\" \"&CHAR(10)&(INDEX(Resultado,SMALL(IF(Objetivo=$B$2,ROW(Resultado)-MIN(ROW(Resultado))+1),ROWS($B$3:B6))))&CHAR(10),\"\")","v":""},null,{"$f":"IFERROR(INDEX(Actividad,SMALL(IF(Objetivo=$D$2,ROW(Actividad)-MIN(ROW(Actividad))+1),ROWS($B$3:B6)))&CHAR(10),\"\")","v":""},null,{"$f":"IFERROR(INDEX(Actividad,SMALL(IF(Objetivo=$F$2,ROW(Actividad)-MIN(ROW(Actividad))+1),ROWS($B$3:B6)))&CHAR(10),\"\")","v":""},null,{"$f":"IFERROR(INDEX(Actividad,SMALL(IF(Objetivo=$H$2,ROW(Actividad)-MIN(ROW(Actividad))+1),ROWS($B$3:B6)))&CHAR(10),\"\")","v":""}]
[null,{"$f":"IFERROR(INDEX(Actividad,SMALL(IF(Objetivo=$B$2,ROW(Actividad)-MIN(ROW(Actividad))+1),ROWS($B$3:B7)))&\" \"&CHAR(10)&(INDEX(Resultado,SMALL(IF(Objetivo=$B$2,ROW(Resultado)-MIN(ROW(Resultado))+1),ROWS($B$3:B7))))&CHAR(10),\"\")","v":""},null,{"$f":"IFERROR(INDEX(Actividad,SMALL(IF(Objetivo=$D$2,ROW(Actividad)-MIN(ROW(Actividad))+1),ROWS($B$3:B7)))&CHAR(10),\"\")","v":""},null,{"$f":"IFERROR(INDEX(Actividad,SMALL(IF(Objetivo=$F$2,ROW(Actividad)-MIN(ROW(Actividad))+1),ROWS($B$3:B7)))&CHAR(10),\"\")","v":""},null,{"$f":"IFERROR(INDEX(Actividad,SMALL(IF(Objetivo=$H$2,ROW(Actividad)-MIN(ROW(Actividad))+1),ROWS($B$3:B7)))&CHAR(10),\"\")","v":""}]
[null,{"$f":"IFERROR(INDEX(Actividad,SMALL(IF(Objetivo=$B$2,ROW(Actividad)-MIN(ROW(Actividad))+1),ROWS($B$3:B8)))&\" \"&CHAR(10)&(INDEX(Resultado,SMALL(IF(Objetivo=$B$2,ROW(Resultado)-MIN(ROW(Resultado))+1),ROWS($B$3:B8))))&CHAR(10),\"\")","v":""},null,{"$f":"IFERROR(INDEX(Actividad,SMALL(IF(Objetivo=$D$2,ROW(Actividad)-MIN(ROW(Actividad))+1),ROWS($B$3:B8)))&CHAR(10),\"\")","v":""},null,{"$f":"IFERROR(INDEX(Actividad,SMALL(IF(Objetivo=$F$2,ROW(Actividad)-MIN(ROW(Actividad))+1),ROWS($B$3:B8)))&CHAR(10),\"\")","v":""},null,{"$f":"IFERROR(INDEX(Actividad,SMALL(IF(Objetivo=$H$2,ROW(Actividad)-MIN(ROW(Actividad))+1),ROWS($B$3:B8)))&CHAR(10),\"\")","v":""}]
[null,{"$f":"IFERROR(INDEX(Actividad,SMALL(IF(Objetivo=$B$2,ROW(Actividad)-MIN(ROW(Actividad))+1),ROWS($B$3:B9)))&\" \"&CHAR(10)&(INDEX(Resultado,SMALL(IF(Objetivo=$B$2,ROW(Resultado)-MIN(ROW(Resultado))+1),ROWS($B$3:B9))))&CHAR(10),\"\")","v":""},null,{"$f":"IFERROR(INDEX(Actividad,SMALL(IF(Objetivo=$D$2,ROW(Actividad)-MIN(ROW(Actividad))+1),ROWS($B$3:B9)))&CHAR(10),\"\")","v":""},null,{"$f":"IFERROR(INDEX(Actividad,SMALL(IF(Objetivo=$F$2,ROW(Actividad)-MIN(ROW(Actividad))+1),ROWS($B$3:B9)))&CHAR(10),\"\")","v":""},null,{"$f":"IFERROR(INDEX(Actividad,SMALL(IF(Objetivo=$H$2,ROW(Actividad)-MIN(ROW(Actividad))+1),ROWS($B$3:B9)))&CHAR(10),\"\")","v":""}]
[null,{"$f":"IFERROR(INDEX(Actividad,SMALL(IF(Objetivo=$B$2,ROW(Actividad)-MIN(ROW(Actividad))+1),ROWS($B$3:B10)))&\" \"&CHAR(10)&(INDEX(Resultado,SMALL(IF(Objetivo=$B$2,ROW(Resultado)-MIN(ROW(Resultado))+1),ROWS($B$3:B10))))&CHAR(10),\"\")","v":""},null,{"$f":"IFERROR(INDEX(Actividad,SMALL(IF(Objetivo=$D$2,ROW(Actividad)-MIN(ROW(Actividad))+1),ROWS($B$3:B10)))&CHAR(10),\"\")","v":""},null,{"$f":"IFERROR(INDEX(Actividad,SMALL(IF(Objetivo=$F$2,ROW(Actividad)-MIN(ROW(Actividad))+1),ROWS($B$3:B10)))&CHAR(10),\"\")","v":""},null,{"$f":"IFERROR(INDEX(Actividad,SMALL(IF(Objetivo=$H$2,ROW(Actividad)-MIN(ROW(Actividad))+1),ROWS($B$3:B10)))&CHAR(10),\"\")","v":""}]
[null,{"$f":"IFERROR(INDEX(Actividad,SMALL(IF(Objetivo=$B$2,ROW(Actividad)-MIN(ROW(Actividad))+1),ROWS($B$3:B11)))&\" \"&CHAR(10)&(INDEX(Resultado,SMALL(IF(Objetivo=$B$2,ROW(Resultado)-MIN(ROW(Resultado))+1),ROWS($B$3:B11))))&CHAR(10),\"\")","v":""},null,{"$f":"IFERROR(INDEX(Actividad,SMALL(IF(Objetivo=$D$2,ROW(Actividad)-MIN(ROW(Actividad))+1),ROWS($B$3:B11)))&CHAR(10),\"\")","v":""},null,{"$f":"IFERROR(INDEX(Actividad,SMALL(IF(Objetivo=$F$2,ROW(Actividad)-MIN(ROW(Actividad))+1),ROWS($B$3:B11)))&CHAR(10),\"\")","v":""},null,{"$f":"IFERROR(INDEX(Actividad,SMALL(IF(Objetivo=$H$2,ROW(Actividad)-MIN(ROW(Actividad))+1),ROWS($B$3:B11)))&CHAR(10),\"\")","v":""}]
[null,{"$f":"IFERROR(INDEX(Actividad,SMALL(IF(Objetivo=$B$2,ROW(Actividad)-MIN(ROW(Actividad))+1),ROWS($B$3:B12)))&\" \"&CHAR(10)&(INDEX(Resultado,SMALL(IF(Objetivo=$B$2,ROW(Resultado)-MIN(ROW(Resultado))+1),ROWS($B$3:B12))))&CHAR(10),\"\")","v":""},null,{"$f":"IFERROR(INDEX(Actividad,SMALL(IF(Objetivo=$D$2,ROW(Actividad)-MIN(ROW(Actividad))+1),ROWS($B$3:B12)))&CHAR(10),\"\")","v":""},null,{"$f":"IFERROR(INDEX(Actividad,SMALL(IF(Objetivo=$F$2,ROW(Actividad)-MIN(ROW(Actividad))+1),ROWS($B$3:B12)))&CHAR(10),\"\")","v":""},null,{"$f":"IFERROR(INDEX(Actividad,SMALL(IF(Objetivo=$H$2,ROW(Actividad)-MIN(ROW(Actividad))+1),ROWS($B$3:B12)))&CHAR(10),\"\")","v":""}]
[null,{"$f":"IFERROR(INDEX(Actividad,SMALL(IF(Objetivo=$B$2,ROW(Actividad)-MIN(ROW(Actividad))+1),ROWS($B$3:B13)))&\" \"&CHAR(10)&(INDEX(Resultado,SMALL(IF(Objetivo=$B$2,ROW(Resultado)-MIN(ROW(Resultado))+1),ROWS($B$3:B13))))&CHAR(10),\"\")","v":""},null,{"$f":"IFERROR(INDEX(Actividad,SMALL(IF(Objetivo=$D$2,ROW(Actividad)-MIN(ROW(Actividad))+1),ROWS($B$3:B13)))&CHAR(10),\"\")","v":""},null,{"$f":"IFERROR(INDEX(Actividad,SMALL(IF(Objetivo=$F$2,ROW(Actividad)-MIN(ROW(Actividad))+1),ROWS($B$3:B13)))&CHAR(10),\"\")","v":""},null,{"$f":"IFERROR(INDEX(Actividad,SMALL(IF(Objetivo=$H$2,ROW(Actividad)-MIN(ROW(Actividad))+1),ROWS($B$3:B13)))&CHAR(10),\"\")","v":""}]
[null,{"$f":"IFERROR(INDEX(Actividad,SMALL(IF(Objetivo=$B$2,ROW(Actividad)-MIN(ROW(Actividad))+1),ROWS($B$3:B14)))&\" \"&CHAR(10)&(INDEX(Resultado,SMALL(IF(Objetivo=$B$2,ROW(Resultado)-MIN(ROW(Resultado))+1),ROWS($B$3:B14))))&CHAR(10),\"\")","v":""},null,{"$f":"IFERROR(INDEX(Actividad,SMALL(IF(Objetivo=$D$2,ROW(Actividad)-MIN(ROW(Actividad))+1),ROWS($B$3:B14)))&CHAR(10),\"\")","v":""},null,{"$f":"IFERROR(INDEX(Actividad,SMALL(IF(Objetivo=$F$2,ROW(Actividad)-MIN(ROW(Actividad))+1),ROWS($B$3:B14)))&CHAR(10),\"\")","v":""},null,{"$f":"IFERROR(INDEX(Actividad,SMALL(IF(Objetivo=$H$2,ROW(Actividad)-MIN(ROW(Actividad))+1),ROWS($B$3:B14)))&CHAR(10),\"\")","v":""}]
[null,{"$f":"IFERROR(INDEX(Actividad,SMALL(IF(Objetivo=$B$2,ROW(Actividad)-MIN(ROW(Actividad))+1),ROWS($B$3:B15)))&\" \"&CHAR(10)&(INDEX(Resultado,SMALL(IF(Objetivo=$B$2,ROW(Resultado)-MIN(ROW(Resultado))+1),ROWS($B$3:B15))))&CHAR(10),\"\")","v":""},null,{"$f":"IFERROR(INDEX(Actividad,SMALL(IF(Objetivo=$D$2,ROW(Actividad)-MIN(ROW(Actividad))+1),ROWS($B$3:B15)))&CHAR(10),\"\")","v":""},null,{"$f":"IFERROR(INDEX(Actividad,SMALL(IF(Objetivo=$F$2,ROW(Actividad)-MIN(ROW(Actividad))+1),ROWS($B$3:B15)))&CHAR(10),\"\")","v":""},null,{"$f":"IFERROR(INDEX(Actividad,SMALL(IF(Objetivo=$H$2,ROW(Actividad)-MIN(ROW(Actividad))+1),ROWS($B$3:B15)))&CHAR(10),\"\")","v":""}]
[null,{"$f":"IFERROR(INDEX(Actividad,SMALL(IF(Objetivo=$B$2,ROW(Actividad)-MIN(ROW(Actividad))+1),ROWS($B$3:B16)))&\" \"&CHAR(10)&(INDEX(Resultado,SMALL(IF(Objetivo=$B$2,ROW(Resultado)-MIN(ROW(Resultado))+1),ROWS($B$3:B16))))&CHAR(10),\"\")","v":""},null,{"$f":"IFERROR(INDEX(Actividad,SMALL(IF(Objetivo=$D$2,ROW(Actividad)-MIN(ROW(Actividad))+1),ROWS($B$3:B16)))&CHAR(10),\"\")","v":""},null,{"$f":"IFERROR(INDEX(Actividad,SMALL(IF(Objetivo=$F$2,ROW(Actividad)-MIN(ROW(Actividad))+1),ROWS($B$3:B16)))&CHAR(10),\"\")","v":""},null,{"$f":"IFERROR(INDEX(Actividad,SMALL(IF(Objetivo=$H$2,ROW(Actividad)-MIN(ROW(Actividad))+1),ROWS($B$3:B16)))&CHAR(10),\"\")","v":""}]
[null,{"$f":"IFERROR(INDEX(Actividad,SMALL(IF(Objetivo=$B$2,ROW(Actividad)-MIN(ROW(Actividad))+1),ROWS($B$3:B17)))&\" \"&CHAR(10)&(INDEX(Resultado,SMALL(IF(Objetivo=$B$2,ROW(Resultado)-MIN(ROW(Resultado))+1),ROWS($B$3:B17))))&CHAR(10),\"\")","v":""},null,{"$f":"IFERROR(INDEX(Actividad,SMALL(IF(Objetivo=$D$2,ROW(Actividad)-MIN(ROW(Actividad))+1),ROWS($B$3:B17)))&CHAR(10),\"\")","v":""},null,{"$f":"IFERROR(INDEX(Actividad,SMALL(IF(Objetivo=$F$2,ROW(Actividad)-MIN(ROW(Actividad))+1),ROWS($B$3:B17)))&CHAR(10),\"\")","v":""},null,{"$f":"IFERROR(INDEX(Actividad,SMALL(IF(Objetivo=$H$2,ROW(Actividad)-MIN(ROW(Actividad))+1),ROWS($B$3:B17)))&CHAR(10),\"\")","v":""}]
[null,{"$f":"IFERROR(INDEX(Actividad,SMALL(IF(Objetivo=$B$2,ROW(Actividad)-MIN(ROW(Actividad))+1),ROWS($B$3:B18)))&\" \"&CHAR(10)&(INDEX(Resultado,SMALL(IF(Objetivo=$B$2,ROW(Resultado)-MIN(ROW(Resultado))+1),ROWS($B$3:B18))))&CHAR(10),\"\")","v":""},null,{"$f":"IFERROR(INDEX(Actividad,SMALL(IF(Objetivo=$D$2,ROW(Actividad)-MIN(ROW(Actividad))+1),ROWS($B$3:B18)))&CHAR(10),\"\")","v":""},null,{"$f":"IFERROR(INDEX(Actividad,SMALL(IF(Objetivo=$F$2,ROW(Actividad)-MIN(ROW(Actividad))+1),ROWS($B$3:B18)))&CHAR(10),\"\")","v":""},null,{"$f":"IFERROR(INDEX(Actividad,SMALL(IF(Objetivo=$H$2,ROW(Actividad)-MIN(ROW(Actividad))+1),ROWS($B$3:B18)))&CHAR(10),\"\")","v":""}]
[null,{"$f":"IFERROR(INDEX(Actividad,SMALL(IF(Objetivo=$B$2,ROW(Actividad)-MIN(ROW(Actividad))+1),ROWS($B$3:B19)))&\" \"&CHAR(10)&(INDEX(Resultado,SMALL(IF(Objetivo=$B$2,ROW(Resultado)-MIN(ROW(Resultado))+1),ROWS($B$3:B19))))&CHAR(10),\"\")","v":""},null,{"$f":"IFERROR(INDEX(Actividad,SMALL(IF(Objetivo=$D$2,ROW(Actividad)-MIN(ROW(Actividad))+1),ROWS($B$3:B19)))&CHAR(10),\"\")","v":""},null,{"$f":"IFERROR(INDEX(Actividad,SMALL(IF(Objetivo=$F$2,ROW(Actividad)-MIN(ROW(Actividad))+1),ROWS($B$3:B19)))&CHAR(10),\"\")","v":""},null,{"$f":"IFERROR(INDEX(Actividad,SMALL(IF(Objetivo=$H$2,ROW(Actividad)-MIN(ROW(Actividad))+1),ROWS($B$3:B19)))&CHAR(10),\"\")","v":""}]
[null,{"$f":"IFERROR(INDEX(Actividad,SMALL(IF(Objetivo=$B$2,ROW(Actividad)-MIN(ROW(Actividad))+1),ROWS($B$3:B20)))&\" \"&CHAR(10)&(INDEX(Resultado,SMALL(IF(Objetivo=$B$2,ROW(Resultado)-MIN(ROW(Resultado))+1),ROWS($B$3:B20))))&CHAR(10),\"\")","v":""},null,{"$f":"IFERROR(INDEX(Actividad,SMALL(IF(Objetivo=$D$2,ROW(Actividad)-MIN(ROW(Actividad))+1),ROWS($B$3:B20)))&CHAR(10),\"\")","v":""},null,{"$f":"IFERROR(INDEX(Actividad,SMALL(IF(Objetivo=$F$2,ROW(Actividad)-MIN(ROW(Actividad))+1),ROWS($B$3:B20)))&CHAR(10),\"\")","v":""},null,{"$f":"IFERROR(INDEX(Actividad,SMALL(IF(Objetivo=$H$2,ROW(Actividad)-MIN(ROW(Actividad))+1),ROWS($B$3:B20)))&CHAR(10),\"\")","v":""}]
[null,{"$f":"IFERROR(INDEX(Actividad,SMALL(IF(Objetivo=$B$2,ROW(Actividad)-MIN(ROW(Actividad))+1),ROWS($B$3:B21)))&\" \"&CHAR(10)&(INDEX(Resultado,SMALL(IF(Objetivo=$B$2,ROW(Resultado)-MIN(ROW(Resultado))+1),ROWS($B$3:B21))))&CHAR(10),\"\")","v":""},null,{"$f":"IFERROR(INDEX(Actividad,SMALL(IF(Objetivo=$D$2,ROW(Actividad)-MIN(ROW(Actividad))+1),ROWS($B$3:B21)))&CHAR(10),\"\")","v":""},null,{"$f":"IFERROR(INDEX(Actividad,SMALL(IF(Objetivo=$F$2,ROW(Actividad)-MIN(ROW(Actividad))+1),ROWS($B$3:B21)))&CHAR(10),\"\")","v":""},null,{"$f":"IFERROR(INDEX(Actividad,SMALL(IF(Objetivo=$H$2,ROW(Actividad)-MIN(ROW(Actividad))+1),ROWS($B$3:B21)))&CHAR(10),\"\")","v":""}]
[null,{"$f":"IFERROR(INDEX(Actividad,SMALL(IF(Objetivo=$B$2,ROW(Actividad)-MIN(ROW(Actividad))+1),ROWS($B$3:B22)))&\" \"&CHAR(10)&(INDEX(Resultado,SMALL(IF(Objetivo=$B$2,ROW(Resultado)-MIN(ROW(Resultado))+1),ROWS($B$3:B22))))&CHAR(10),\"\")","v":""},null,{"$f":"IFERROR(INDEX(Actividad,SMALL(IF(Objetivo=$D$2,ROW(Actividad)-MIN(ROW(Actividad))+1),ROWS($B$3:B22)))&CHAR(10),\"\")","v":""},null,{"$f":"IFERROR(INDEX(Actividad,SMALL(IF(Objetivo=$F$2,ROW(Actividad)-MIN(ROW(Actividad))+1),ROWS($B$3:B22)))&CHAR(10),\"\")","v":""},null,{"$f":"IFERROR(INDEX(Actividad,SMALL(IF(Objetivo=$H$2,ROW(Actividad)-MIN(ROW(Actividad))+1),ROWS($B$3:B22)))&CHAR(10),\"\")","v":""}]
[null,{"$f":"IFERROR(INDEX(Actividad,SMALL(IF(Objetivo=$B$2,ROW(Actividad)-MIN(ROW(Actividad))+1),ROWS($B$3:B23)))&\" \"&CHAR(10)&(INDEX(Resultado,SMALL(IF(Objetivo=$B$2,ROW(Resultado)-MIN(ROW(Resultado))+1),ROWS($B$3:B23))))&CHAR(10),\"\")","v":""},null,{"$f":"IFERROR(INDEX(Actividad,SMALL(IF(Objetivo=$D$2,ROW(Actividad)-MIN(ROW(Actividad))+1),ROWS($B$3:B23)))&CHAR(10),\"\")","v":""},null,{"$f":"IFERROR(INDEX(Actividad,SMALL(IF(Objetivo=$F$2,ROW(Actividad)-MIN(ROW(Actividad))+1),ROWS($B$3:B23)))&CHAR(10),\"\")","v":""},null,{"$f":"IFERROR(INDEX(Actividad,SMALL(IF(Objetivo=$H$2,ROW(Actividad)-MIN(ROW(Actividad))+1),ROWS($B$3:B23)))&CHAR(10),\"\")","v":""}]
[null,{"$f":"IFERROR(INDEX(Actividad,SMALL(IF(Objetivo=$B$2,ROW(Actividad)-MIN(ROW(Actividad))+1),ROWS($B$3:B24)))&\" \"&CHAR(10)&(INDEX(Resultado,SMALL(IF(Objetivo=$B$2,ROW(Resultado)-MIN(ROW(Resultado))+1),ROWS($B$3:B24))))&CHAR(10),\"\")","v":""},null,{"$f":"IFERROR(INDEX(Actividad,SMALL(IF(Objetivo=$D$2,ROW(Actividad)-MIN(ROW(Actividad))+1),ROWS($B$3:B24)))&CHAR(10),\"\")","v":""},null,{"$f":"IFERROR(INDEX(Actividad,SMALL(IF(Objetivo=$F$2,ROW(Actividad)-MIN(ROW(Actividad))+1),ROWS($B$3:B24)))&CHAR(10),\"\")","v":""},null,{"$f":"IFERROR(INDEX(Actividad,SMALL(IF(Objetivo=$H$2,ROW(Actividad)-MIN(ROW(Actividad))+1),ROWS($B$3:B24)))&CHAR(10),\"\")","v":""}]
[null,{"$f":"IFERROR(INDEX(Actividad,SMALL(IF(Objetivo=$B$2,ROW(Actividad)-MIN(ROW(Actividad))+1),ROWS($B$3:B25)))&\" \"&CHAR(10)&(INDEX(Resultado,SMALL(IF(Objetivo=$B$2,ROW(Resultado)-MIN(ROW(Resultado))+1),ROWS($B$3:B25))))&CHAR(10),\"\")","v":""},null,{"$f":"IFERROR(INDEX(Actividad,SMALL(IF(Objetivo=$D$2,ROW(Actividad)-MIN(ROW(Actividad))+1),ROWS($B$3:B25)))&CHAR(10),\"\")","v":""},null,{"$f":"IFERROR(INDEX(Actividad,SMALL(IF(Objetivo=$F$2,ROW(Actividad)-MIN(ROW(Actividad))+1),ROWS($B$3:B25)))&CHAR(10),\"\")","v":""},null,{"$f":"IFERROR(INDEX(Actividad,SMALL(IF(Objetivo=$H$2,ROW(Actividad)-MIN(ROW(Actividad))+1),ROWS($B$3:B25)))&CHAR(10),\"\")","v":""}]
[null,{"$f":"IFERROR(INDEX(Actividad,SMALL(IF(Objetivo=$B$2,ROW(Actividad)-MIN(ROW(Actividad))+1),ROWS($B$3:B26)))&\" \"&CHAR(10)&(INDEX(Resultado,SMALL(IF(Objetivo=$B$2,ROW(Resultado)-MIN(ROW(Resultado))+1),ROWS($B$3:B26))))&CHAR(10),\"\")","v":""},null,{"$f":"IFERROR(INDEX(Actividad,SMALL(IF(Objetivo=$D$2,ROW(Actividad)-MIN(ROW(Actividad))+1),ROWS($B$3:B26)))&CHAR(10),\"\")","v":""},null,{"$f":"IFERROR(INDEX(Actividad,SMALL(IF(Objetivo=$F$2,ROW(Actividad)-MIN(ROW(Actividad))+1),ROWS($B$3:B26)))&CHAR(10),\"\")","v":""},null,{"$f":"IFERROR(INDEX(Actividad,SMALL(IF(Objetivo=$H$2,ROW(Actividad)-MIN(ROW(Actividad))+1),ROWS($B$3:B26)))&CHAR(10),\"\")","v":""}]
[null,{"$f":"IFERROR(INDEX(Actividad,SMALL(IF(Objetivo=$B$2,ROW(Actividad)-MIN(ROW(Actividad))+1),ROWS($B$3:B27)))&\" \"&CHAR(10)&(INDEX(Resultado,SMALL(IF(Objetivo=$B$2,ROW(Resultado)-MIN(ROW(Resultado))+1),ROWS($B$3:B27))))&CHAR(10),\"\")","v":""},null,{"$f":"IFERROR(INDEX(Actividad,SMALL(IF(Objetivo=$D$2,ROW(Actividad)-MIN(ROW(Actividad))+1),ROWS($B$3:B27)))&CHAR(10),\"\")","v":""},null,{"$f":"IFERROR(INDEX(Actividad,SMALL(IF(Objetivo=$F$2,ROW(Actividad)-MIN(ROW(Actividad))+1),ROWS($B$3:B27)))&CHAR(10),\"\")","v":""},null,{"$f":"IFERROR(INDEX(Actividad,SMALL(IF(Objetivo=$H$2,ROW(Actividad)-MIN(ROW(Actividad))+1),ROWS($B$3:B27)))&CHAR(10),\"\")","v":""}]
[null,{"$f":"IFERROR(INDEX(Actividad,SMALL(IF(Objetivo=$B$2,ROW(Actividad)-MIN(ROW(Actividad))+1),ROWS($B$3:B28)))&\" \"&CHAR(10)&(INDEX(Resultado,SMALL(IF(Objetivo=$B$2,ROW(Resultado)-MIN(ROW(Resultado))+1),ROWS($B$3:B28))))&CHAR(10),\"\")","v":""},null,{"$f":"IFERROR(INDEX(Actividad,SMALL(IF(Objetivo=$D$2,ROW(Actividad)-MIN(ROW(Actividad))+1),ROWS($B$3:B28)))&CHAR(10),\"\")","v":""},null,{"$f":"IFERROR(INDEX(Actividad,SMALL(IF(Objetivo=$F$2,ROW(Actividad)-MIN(ROW(Actividad))+1),ROWS($B$3:B28)))&CHAR(10),\"\")","v":""},null,{"$f":"IFERROR(INDEX(Actividad,SMALL(IF(Objetivo=$H$2,ROW(Actividad)-MIN(ROW(Actividad))+1),ROWS($B$3:B28)))&CHAR(10),\"\")","v":""}]
[null,{"$f":"IFERROR(INDEX(Actividad,SMALL(IF(Objetivo=$B$2,ROW(Actividad)-MIN(ROW(Actividad))+1),ROWS($B$3:B29)))&\" \"&CHAR(10)&(INDEX(Resultado,SMALL(IF(Objetivo=$B$2,ROW(Resultado)-MIN(ROW(Resultado))+1),ROWS($B$3:B29))))&CHAR(10),\"\")","v":""},null,{"$f":"IFERROR(INDEX(Actividad,SMALL(IF(Objetivo=$D$2,ROW(Actividad)-MIN(ROW(Actividad))+1),ROWS($B$3:B29)))&CHAR(10),\"\")","v":""},null,{"$f":"IFERROR(INDEX(Actividad,SMALL(IF(Objetivo=$F$2,ROW(Actividad)-MIN(ROW(Actividad))+1),ROWS($B$3:B29)))&CHAR(10),\"\")","v":""},null,{"$f":"IFERROR(INDEX(Actividad,SMALL(IF(Objetivo=$H$2,ROW(Actividad)-MIN(ROW(Actividad))+1),ROWS($B$3:B29)))&CHAR(10),\"\")","v":""}]
[null,{"$f":"IFERROR(INDEX(Actividad,SMALL(IF(Objetivo=$B$2,ROW(Actividad)-MIN(ROW(Actividad))+1),ROWS($B$3:B30)))&\" \"&CHAR(10)&(INDEX(Resultado,SMALL(IF(Objetivo=$B$2,ROW(Resultado)-MIN(ROW(Resultado))+1),ROWS($B$3:B30))))&CHAR(10),\"\")","v":""},null,{"$f":"IFERROR(INDEX(Actividad,SMALL(IF(Objetivo=$D$2,ROW(Actividad)-MIN(ROW(Actividad))+1),ROWS($B$3:B30)))&CHAR(10),\"\")","v":""},null,{"$f":"IFERROR(INDEX(Actividad,SMALL(IF(Objetivo=$F$2,ROW(Actividad)-MIN(ROW(Actividad))+1),ROWS($B$3:B30)))&CHAR(10),\"\")","v":""},null,{"$f":"IFERROR(INDEX(Actividad,SMALL(IF(Objetivo=$H$2,ROW(Actividad)-MIN(ROW(Actividad))+1),ROWS($B$3:B30)))&CHAR(10),\"\")","v":""}]
[null,{"$f":"IFERROR(INDEX(Actividad,SMALL(IF(Objetivo=$B$2,ROW(Actividad)-MIN(ROW(Actividad))+1),ROWS($B$3:B31)))&\" \"&CHAR(10)&(INDEX(Resultado,SMALL(IF(Objetivo=$B$2,ROW(Resultado)-MIN(ROW(Resultado))+1),ROWS($B$3:B31))))&CHAR(10),\"\")","v":""},null,{"$f":"IFERROR(INDEX(Actividad,SMALL(IF(Objetivo=$D$2,ROW(Actividad)-MIN(ROW(Actividad))+1),ROWS($B$3:B31)))&CHAR(10),\"\")","v":""},null,{"$f":"IFERROR(INDEX(Actividad,SMALL(IF(Objetivo=$F$2,ROW(Actividad)-MIN(ROW(Actividad))+1),ROWS($B$3:B31)))&CHAR(10),\"\")","v":""},null,{"$f":"IFERROR(INDEX(Actividad,SMALL(IF(Objetivo=$H$2,ROW(Actividad)-MIN(ROW(Actividad))+1),ROWS($B$3:B31)))&CHAR(10),\"\")","v":""}]
[null,{"$f":"IFERROR(INDEX(Actividad,SMALL(IF(Objetivo=$B$2,ROW(Actividad)-MIN(ROW(Actividad))+1),ROWS($B$3:B32)))&\" \"&CHAR(10)&(INDEX(Resultado,SMALL(IF(Objetivo=$B$2,ROW(Resultado)-MIN(ROW(Resultado))+1),ROWS($B$3:B32))))&CHAR(10),\"\")","v":""},null,{"$f":"IFERROR(INDEX(Actividad,SMALL(IF(Objetivo=$D$2,ROW(Actividad)-MIN(ROW(Actividad))+1),ROWS($B$3:B32)))&CHAR(10),\"\")","v":""},null,{"$f":"IFERROR(INDEX(Actividad,SMALL(IF(Objetivo=$F$2,ROW(Actividad)-MIN(ROW(Actividad))+1),ROWS($B$3:B32)))&CHAR(10),\"\")","v":""},null,{"$f":"IFERROR(INDEX(Actividad,SMALL(IF(Objetivo=$H$2,ROW(Actividad)-MIN(ROW(Actividad))+1),ROWS($B$3:B32)))&CHAR(10),\"\")","v":""}]
[null,{"$f":"IFERROR(INDEX(Actividad,SMALL(IF(Objetivo=$B$2,ROW(Actividad)-MIN(ROW(Actividad))+1),ROWS($B$3:B33)))&\" \"&CHAR(10)&(INDEX(Resultado,SMALL(IF(Objetivo=$B$2,ROW(Resultado)-MIN(ROW(Resultado))+1),ROWS($B$3:B33))))&CHAR(10),\"\")","v":""},null,{"$f":"IFERROR(INDEX(Actividad,SMALL(IF(Objetivo=$D$2,ROW(Actividad)-MIN(ROW(Actividad))+1),ROWS($B$3:B33)))&CHAR(10),\"\")","v":""},null,{"$f":"IFERROR(INDEX(Actividad,SMALL(IF(Objetivo=$F$2,ROW(Actividad)-MIN(ROW(Actividad))+1),ROWS($B$3:B33)))&CHAR(10),\"\")","v":""},null,{"$f":"IFERROR(INDEX(Actividad,SMALL(IF(Objetivo=$H$2,ROW(Actividad)-MIN(ROW(Actividad))+1),ROWS($B$3:B33)))&CHAR(10),\"\")","v":""}]
[null,{"$f":"IFERROR(INDEX(Actividad,SMALL(IF(Objetivo=$B$2,ROW(Actividad)-MIN(ROW(Actividad))+1),ROWS($B$3:B34)))&\" \"&CHAR(10)&(INDEX(Resultado,SMALL(IF(Objetivo=$B$2,ROW(Resultado)-MIN(ROW(Resultado))+1),ROWS($B$3:B34))))&CHAR(10),\"\")","v":""},null,{"$f":"IFERROR(INDEX(Actividad,SMALL(IF(Objetivo=$D$2,ROW(Actividad)-MIN(ROW(Actividad))+1),ROWS($B$3:B34)))&CHAR(10),\"\")","v":""},null,{"$f":"IFERROR(INDEX(Actividad,SMALL(IF(Objetivo=$F$2,ROW(Actividad)-MIN(ROW(Actividad))+1),ROWS($B$3:B34)))&CHAR(10),\"\")","v":""},null,{"$f":"IFERROR(INDEX(Actividad,SMALL(IF(Objetivo=$H$2,ROW(Actividad)-MIN(ROW(Actividad))+1),ROWS($B$3:B34)))&CHAR(10),\"\")","v":""}]
[null,{"$f":"IFERROR(INDEX(Actividad,SMALL(IF(Objetivo=$B$2,ROW(Actividad)-MIN(ROW(Actividad))+1),ROWS($B$3:B35)))&\" \"&CHAR(10)&(INDEX(Resultado,SMALL(IF(Objetivo=$B$2,ROW(Resultado)-MIN(ROW(Resultado))+1),ROWS($B$3:B35))))&CHAR(10),\"\")","v":""},null,{"$f":"IFERROR(INDEX(Actividad,SMALL(IF(Objetivo=$D$2,ROW(Actividad)-MIN(ROW(Actividad))+1),ROWS($B$3:B35)))&CHAR(10),\"\")","v":""},null,{"$f":"IFERROR(INDEX(Actividad,SMALL(IF(Objetivo=$F$2,ROW(Actividad)-MIN(ROW(Actividad))+1),ROWS($B$3:B35)))&CHAR(10),\"\")","v":""},null,{"$f":"IFERROR(INDEX(Actividad,SMALL(IF(Objetivo=$H$2,ROW(Actividad)-MIN(ROW(Actividad))+1),ROWS($B$3:B35)))&CHAR(10),\"\")","v":""}]
[null,{"$f":"IFERROR(INDEX(Actividad,SMALL(IF(Objetivo=$B$2,ROW(Actividad)-MIN(ROW(Actividad))+1),ROWS($B$3:B36)))&\" \"&CHAR(10)&(INDEX(Resultado,SMALL(IF(Objetivo=$B$2,ROW(Resultado)-MIN(ROW(Resultado))+1),ROWS($B$3:B36))))&CHAR(10),\"\")","v":""},null,{"$f":"IFERROR(INDEX(Actividad,SMALL(IF(Objetivo=$D$2,ROW(Actividad)-MIN(ROW(Actividad))+1),ROWS($B$3:B36)))&CHAR(10),\"\")","v":""},null,{"$f":"IFERROR(INDEX(Actividad,SMALL(IF(Objetivo=$F$2,ROW(Actividad)-MIN(ROW(Actividad))+1),ROWS($B$3:B36)))&CHAR(10),\"\")","v":""},null,{"$f":"IFERROR(INDEX(Actividad,SMALL(IF(Objetivo=$H$2,ROW(Actividad)-MIN(ROW(Actividad))+1),ROWS($B$3:B36)))&CHAR(10),\"\")","v":""}]
[null,{"$f":"IFERROR(INDEX(Actividad,SMALL(IF(Objetivo=$B$2,ROW(Actividad)-MIN(ROW(Actividad))+1),ROWS($B$3:B37)))&\" \"&CHAR(10)&(INDEX(Resultado,SMALL(IF(Objetivo=$B$2,ROW(Resultado)-MIN(ROW(Resultado))+1),ROWS($B$3:B37))))&CHAR(10),\"\")","v":""},null,{"$f":"IFERROR(INDEX(Actividad,SMALL(IF(Objetivo=$D$2,ROW(Actividad)-MIN(ROW(Actividad))+1),ROWS($B$3:B37)))&CHAR(10),\"\")","v":""},null,{"$f":"IFERROR(INDEX(Actividad,SMALL(IF(Objetivo=$F$2,ROW(Actividad)-MIN(ROW(Actividad))+1),ROWS($B$3:B37)))&CHAR(10),\"\")","v":""},null,{"$f":"IFERROR(INDEX(Actividad,SMALL(IF(Objetivo=$H$2,ROW(Actividad)-MIN(ROW(Actividad))+1),ROWS($B$3:B37)))&CHAR(10),\"\")","v":""}]
[null,{"$f":"IFERROR(INDEX(Actividad,SMALL(IF(Objetivo=$B$2,ROW(Actividad)-MIN(ROW(Actividad))+1),ROWS($B$3:B38)))&\" \"&CHAR(10)&(INDEX(Resultado,SMALL(IF(Objetivo=$B$2,ROW(Resultado)-MIN(ROW(Resultado))+1),ROWS($B$3:B38))))&CHAR(10),\"\")","v":""},null,{"$f":"IFERROR(INDEX(Actividad,SMALL(IF(Objetivo=$D$2,ROW(Actividad)-MIN(ROW(Actividad))+1),ROWS($B$3:B38)))&CHAR(10),\"\")","v":""},null,{"$f":"IFERROR(INDEX(Actividad,SMALL(IF(Objetivo=$F$2,ROW(Actividad)-MIN(ROW(Actividad))+1),ROWS($B$3:B38)))&CHAR(10),\"\")","v":""},null,{"$f":"IFERROR(INDEX(Actividad,SMALL(IF(Objetivo=$H$2,ROW(Actividad)-MIN(ROW(Actividad))+1),ROWS($B$3:B38)))&CHAR(10),\"\")","v":""}]
[null,{"$f":"IFERROR(INDEX(Actividad,SMALL(IF(Objetivo=$B$2,ROW(Actividad)-MIN(ROW(Actividad))+1),ROWS($B$3:B39)))&\" \"&CHAR(10)&(INDEX(Resultado,SMALL(IF(Objetivo=$B$2,ROW(Resultado)-MIN(ROW(Resultado))+1),ROWS($B$3:B39))))&CHAR(10),\"\")","v":""},null,{"$f":"IFERROR(INDEX(Actividad,SMALL(IF(Objetivo=$D$2,ROW(Actividad)-MIN(ROW(Actividad))+1),ROWS($B$3:B39)))&CHAR(10),\"\")","v":""},null,{"$f":"IFERROR(INDEX(Actividad,SMALL(IF(Objetivo=$F$2,ROW(Actividad)-MIN(ROW(Actividad))+1),ROWS($B$3:B39)))&CHAR(10),\"\")","v":""},null,{"$f":"IFERROR(INDEX(Actividad,SMALL(IF(Objetivo=$H$2,ROW(Actividad)-MIN(ROW(Actividad))+1),ROWS($B$3:B39)))&CHAR(10),\"\")","v":""}]
[null,{"$f":"IFERROR(INDEX(Actividad,SMALL(IF(Objetivo=$B$2,ROW(Actividad)-MIN(ROW(Actividad))+1),ROWS($B$3:B40)))&\" \"&CHAR(10)&(INDEX(Resultado,SMALL(IF(Objetivo=$B$2,ROW(Resultado)-MIN(ROW(Resultado))+1),ROWS($B$3:B40))))&CHAR(10),\"\")","v":""},null,{"$f":"IFERROR(INDEX(Actividad,SMALL(IF(Objetivo=$D$2,ROW(Actividad)-MIN(ROW(Actividad))+1),ROWS($B$3:B40)))&CHAR(10),\"\")","v":""},null,{"$f":"IFERROR(INDEX(Actividad,SMALL(IF(Objetivo=$F$2,ROW(Actividad)-MIN(ROW(Actividad))+1),ROWS($B$3:B40)))&CHAR(10),\"\")","v":""},null,{"$f":"IFERROR(INDEX(Actividad,SMALL(IF(Objetivo=$H$2,ROW(Actividad)-MIN(ROW(Actividad))+1),ROWS($B$3:B40)))&CHAR(10),\"\")","v":""}]
[null,{"$f":"IFERROR(INDEX(Actividad,SMALL(IF(Objetivo=$B$2,ROW(Actividad)-MIN(ROW(Actividad))+1),ROWS($B$3:B41)))&\" \"&CHAR(10)&(INDEX(Resultado,SMALL(IF(Objetivo=$B$2,ROW(Resultado)-MIN(ROW(Resultado))+1),ROWS($B$3:B41))))&CHAR(10),\"\")","v":""},null,{"$f":"IFERROR(INDEX(Actividad,SMALL(IF(Objetivo=$D$2,ROW(Actividad)-MIN(ROW(Actividad))+1),ROWS($B$3:B41)))&CHAR(10),\"\")","v":""},null,{"$f":"IFERROR(INDEX(Actividad,SMALL(IF(Objetivo=$F$2,ROW(Actividad)-MIN(ROW(Actividad))+1),ROWS($B$3:B41)))&CHAR(10),\"\")","v":""},null,{"$f":"IFERROR(INDEX(Actividad,SMALL(IF(Objetivo=$H$2,ROW(Actividad)-MIN(ROW(Actividad))+1),ROWS($B$3:B41)))&CHAR(10),\"\")","v":""}]
[null,{"$f":"IFERROR(INDEX(Actividad,SMALL(IF(Objetivo=$B$2,ROW(Actividad)-MIN(ROW(Actividad))+1),ROWS($B$3:B42)))&\" \"&CHAR(10)&(INDEX(Resultado,SMALL(IF(Objetivo=$B$2,ROW(Resultado)-MIN(ROW(Resultado))+1),ROWS($B$3:B42))))&CHAR(10),\"\")","v":""},null,{"$f":"IFERROR(INDEX(Actividad,SMALL(IF(Objetivo=$D$2,ROW(Actividad)-MIN(ROW(Actividad))+1),ROWS($B$3:B42)))&CHAR(10),\"\")","v":""},null,{"$f":"IFERROR(INDEX(Actividad,SMALL(IF(Objetivo=$F$2,ROW(Actividad)-MIN(ROW(Actividad))+1),ROWS($B$3:B42)))&CHAR(10),\"\")","v":""},null,{"$f":"IFERROR(INDEX(Actividad,SMALL(IF(Objetivo=$H$2,ROW(Actividad)-MIN(ROW(Actividad))+1),ROWS($B$3:B42)))&CHAR(10),\"\")","v":""}]
[null,{"$f":"IFERROR(INDEX(Actividad,SMALL(IF(Objetivo=$B$2,ROW(Actividad)-MIN(ROW(Actividad))+1),ROWS($B$3:B43)))&\" \"&CHAR(10)&(INDEX(Resultado,SMALL(IF(Objetivo=$B$2,ROW(Resultado)-MIN(ROW(Resultado))+1),ROWS($B$3:B43))))&CHAR(10),\"\")","v":""},null,{"$f":"IFERROR(INDEX(Actividad,SMALL(IF(Objetivo=$D$2,ROW(Actividad)-MIN(ROW(Actividad))+1),ROWS($B$3:B43)))&CHAR(10),\"\")","v":""},null,{"$f":"IFERROR(INDEX(Actividad,SMALL(IF(Objetivo=$F$2,ROW(Actividad)-MIN(ROW(Actividad))+1),ROWS($B$3:B43)))&CHAR(10),\"\")","v":""},null,{"$f":"IFERROR(INDEX(Actividad,SMALL(IF(Objetivo=$H$2,ROW(Actividad)-MIN(ROW(Actividad))+1),ROWS($B$3:B43)))&CHAR(10),\"\")","v":""}]
[null,{"$f":"IFERROR(INDEX(Actividad,SMALL(IF(Objetivo=$B$2,ROW(Actividad)-MIN(ROW(Actividad))+1),ROWS($B$3:B44)))&\" \"&CHAR(10)&(INDEX(Resultado,SMALL(IF(Objetivo=$B$2,ROW(Resultado)-MIN(ROW(Resultado))+1),ROWS($B$3:B44))))&CHAR(10),\"\")","v":""},null,{"$f":"IFERROR(INDEX(Actividad,SMALL(IF(Objetivo=$D$2,ROW(Actividad)-MIN(ROW(Actividad))+1),ROWS($B$3:B44)))&CHAR(10),\"\")","v":""},null,{"$f":"IFERROR(INDEX(Actividad,SMALL(IF(Objetivo=$F$2,ROW(Actividad)-MIN(ROW(Actividad))+1),ROWS($B$3:B44)))&CHAR(10),\"\")","v":""},null,{"$f":"IFERROR(INDEX(Actividad,SMALL(IF(Objetivo=$H$2,ROW(Actividad)-MIN(ROW(Actividad))+1),ROWS($B$3:B44)))&CHAR(10),\"\")","v":""}]
[null,{"$f":"IFERROR(INDEX(Actividad,SMALL(IF(Objetivo=$B$2,ROW(Actividad)-MIN(ROW(Actividad))+1),ROWS($B$3:B45)))&\" \"&CHAR(10)&(INDEX(Resultado,SMALL(IF(Objetivo=$B$2,ROW(Resultado)-MIN(ROW(Resultado))+1),ROWS($B$3:B45))))&CHAR(10),\"\")","v":""},null,{"$f":"IFERROR(INDEX(Actividad,SMALL(IF(Objetivo=$D$2,ROW(Actividad)-MIN(ROW(Actividad))+1),ROWS($B$3:B45)))&CHAR(10),\"\")","v":""},null,{"$f":"IFERROR(INDEX(Actividad,SMALL(IF(Objetivo=$F$2,ROW(Actividad)-MIN(ROW(Actividad))+1),ROWS($B$3:B45)))&CHAR(10),\"\")","v":""},null,{"$f":"IFERROR(INDEX(Actividad,SMALL(IF(Objetivo=$H$2,ROW(Actividad)-MIN(ROW(Actividad))+1),ROWS($B$3:B45)))&CHAR(10),\"\")","v":""}]
[null,{"$f":"IFERROR(INDEX(Actividad,SMALL(IF(Objetivo=$B$2,ROW(Actividad)-MIN(ROW(Actividad))+1),ROWS($B$3:B46)))&\" \"&CHAR(10)&(INDEX(Resultado,SMALL(IF(Objetivo=$B$2,ROW(Resultado)-MIN(ROW(Resultado))+1),ROWS($B$3:B46))))&CHAR(10),\"\")","v":""},null,{"$f":"IFERROR(INDEX(Actividad,SMALL(IF(Objetivo=$D$2,ROW(Actividad)-MIN(ROW(Actividad))+1),ROWS($B$3:B46)))&CHAR(10),\"\")","v":""},null,{"$f":"IFERROR(INDEX(Actividad,SMALL(IF(Objetivo=$F$2,ROW(Actividad)-MIN(ROW(Actividad))+1),ROWS($B$3:B46)))&CHAR(10),\"\")","v":""},null,{"$f":"IFERROR(INDEX(Actividad,SMALL(IF(Objetivo=$H$2,ROW(Actividad)-MIN(ROW(Actividad))+1),ROWS($B$3:B46)))&CHAR(10),\"\")","v":""}]
[null,{"$f":"IFERROR(INDEX(Actividad,SMALL(IF(Objetivo=$B$2,ROW(Actividad)-MIN(ROW(Actividad))+1),ROWS($B$3:B47)))&\" \"&CHAR(10)&(INDEX(Resultado,SMALL(IF(Objetivo=$B$2,ROW(Resultado)-MIN(ROW(Resultado))+1),ROWS($B$3:B47))))&CHAR(10),\"\")","v":""},null,{"$f":"IFERROR(INDEX(Actividad,SMALL(IF(Objetivo=$D$2,ROW(Actividad)-MIN(ROW(Actividad))+1),ROWS($B$3:B47)))&CHAR(10),\"\")","v":""},null,{"$f":"IFERROR(INDEX(Actividad,SMALL(IF(Objetivo=$F$2,ROW(Actividad)-MIN(ROW(Actividad))+1),ROWS($B$3:B47)))&CHAR(10),\"\")","v":""},null,{"$f":"IFERROR(INDEX(Actividad,SMALL(IF(Objetivo=$H$2,ROW(Actividad)-MIN(ROW(Actividad))+1),ROWS($B$3:B47)))&CHAR(10),\"\")","v":""}]
[null,{"$f":"IFERROR(INDEX(Actividad,SMALL(IF(Objetivo=$B$2,ROW(Actividad)-MIN(ROW(Actividad))+1),ROWS($B$3:B48)))&\" \"&CHAR(10)&(INDEX(Resultado,SMALL(IF(Objetivo=$B$2,ROW(Resultado)-MIN(ROW(Resultado))+1),ROWS($B$3:B48))))&CHAR(10),\"\")","v":""},null,{"$f":"IFERROR(INDEX(Actividad,SMALL(IF(Objetivo=$D$2,ROW(Actividad)-MIN(ROW(Actividad))+1),ROWS($B$3:B48)))&CHAR(10),\"\")","v":""},null,{"$f":"IFERROR(INDEX(Actividad,SMALL(IF(Objetivo=$F$2,ROW(Actividad)-MIN(ROW(Actividad))+1),ROWS($B$3:B48)))&CHAR(10),\"\")","v":""},null,{"$f":"IFERROR(INDEX(Actividad,SMALL(IF(Objetivo=$H$2,ROW(Actividad)-MIN(ROW(Actividad))+1),ROWS($B$3:B48)))&CHAR(10),\"\")","v":""}]
[null,{"$f":"IFERROR(INDEX(Actividad,SMALL(IF(Objetivo=$B$2,ROW(Actividad)-MIN(ROW(Actividad))+1),ROWS($B$3:B49)))&\" \"&CHAR(10)&(INDEX(Resultado,SMALL(IF(Objetivo=$B$2,ROW(Resultado)-MIN(ROW(Resultado))+1),ROWS($B$3:B49))))&CHAR(10),\"\")","v":""},null,{"$f":"IFERROR(INDEX(Actividad,SMALL(IF(Objetivo=$D$2,ROW(Actividad)-MIN(ROW(Actividad))+1),ROWS($B$3:B49)))&CHAR(10),\"\")","v":""},null,{"$f":"IFERROR(INDEX(Actividad,SMALL(IF(Objetivo=$F$2,ROW(Actividad)-MIN(ROW(Actividad))+1),ROWS($B$3:B49)))&CHAR(10),\"\")","v":""},null,{"$f":"IFERROR(INDEX(Actividad,SMALL(IF(Objetivo=$H$2,ROW(Actividad)-MIN(ROW(Actividad))+1),ROWS($B$3:B49)))&CHAR(10),\"\")","v":""}]
[null,{"$f":"IFERROR(INDEX(Actividad,SMALL(IF(Objetivo=$B$2,ROW(Actividad)-MIN(ROW(Actividad))+1),ROWS($B$3:B50)))&\" \"&CHAR(10)&(INDEX(Resultado,SMALL(IF(Objetivo=$B$2,ROW(Resultado)-MIN(ROW(Resultado))+1),ROWS($B$3:B50))))&CHAR(10),\"\")","v":""},null,{"$f":"IFERROR(INDEX(Actividad,SMALL(IF(Objetivo=$D$2,ROW(Actividad)-MIN(ROW(Actividad))+1),ROWS($B$3:B50)))&CHAR(10),\"\")","v":""},null,{"$f":"IFERROR(INDEX(Actividad,SMALL(IF(Objetivo=$F$2,ROW(Actividad)-MIN(ROW(Actividad))+1),ROWS($B$3:B50)))&CHAR(10),\"\")","v":""},null,{"$f":"IFERROR(INDEX(Actividad,SMALL(IF(Objetivo=$H$2,ROW(Actividad)-MIN(ROW(Actividad))+1),ROWS($B$3:B50)))&CHAR(10),\"\")","v":""}]
[null,{"$f":"IFERROR(INDEX(Actividad,SMALL(IF(Objetivo=$B$2,ROW(Actividad)-MIN(ROW(Actividad))+1),ROWS($B$3:B51)))&\" \"&CHAR(10)&(INDEX(Resultado,SMALL(IF(Objetivo=$B$2,ROW(Resultado)-MIN(ROW(Resultado))+1),ROWS($B$3:B51))))&CHAR(10),\"\")","v":""},null,{"$f":"IFERROR(INDEX(Actividad,SMALL(IF(Objetivo=$D$2,ROW(Actividad)-MIN(ROW(Actividad))+1),ROWS($B$3:B51)))&CHAR(10),\"\")","v":""},null,{"$f":"IFERROR(INDEX(Actividad,SMALL(IF(Objetivo=$F$2,ROW(Actividad)-MIN(ROW(Actividad))+1),ROWS($B$3:B51)))&CHAR(10),\"\")","v":""},null,{"$f":"IFERROR(INDEX(Actividad,SMALL(IF(Objetivo=$H$2,ROW(Actividad)-MIN(ROW(Actividad))+1),ROWS($B$3:B51)))&CHAR(10),\"\")","v":""}]
[null,{"$f":"IFERROR(INDEX(Actividad,SMALL(IF(Objetivo=$B$2,ROW(Actividad)-MIN(ROW(Actividad))+1),ROWS($B$3:B52)))&\" \"&CHAR(10)&(INDEX(Resultado,SMALL(IF(Objetivo=$B$2,ROW(Resultado)-MIN(ROW(Resultado))+1),ROWS($B$3:B52))))&CHAR(10),\"\")","v":""},null,{"$f":"IFERROR(INDEX(Actividad,SMALL(IF(Objetivo=$D$2,ROW(Actividad)-MIN(ROW(Actividad))+1),ROWS($B$3:B52)))&CHAR(10),\"\")","v":""},null,{"$f":"IFERROR(INDEX(Actividad,SMALL(IF(Objetivo=$F$2,ROW(Actividad)-MIN(ROW(Actividad))+1),ROWS($B$3:B52)))&CHAR(10),\"\")","v":""},null,{"$f":"IFERROR(INDEX(Actividad,SMALL(IF(Objetivo=$H$2,ROW(Actividad)-MIN(ROW(Actividad))+1),ROWS($B$3:B52)))&CHAR(10),\"\")","v":""}]
[null,{"$f":"IFERROR(INDEX(Actividad,SMALL(IF(Objetivo=$B$2,ROW(Actividad)-MIN(ROW(Actividad))+1),ROWS($B$3:B53)))&\" \"&CHAR(10)&(INDEX(Resultado,SMALL(IF(Objetivo=$B$2,ROW(Resultado)-MIN(ROW(Resultado))+1),ROWS($B$3:B53))))&CHAR(10),\"\")","v":""},null,{"$f":"IFERROR(INDEX(Actividad,SMALL(IF(Objetivo=$D$2,ROW(Actividad)-MIN(ROW(Actividad))+1),ROWS($B$3:B53)))&CHAR(10),\"\")","v":""},null,{"$f":"IFERROR(INDEX(Actividad,SMALL(IF(Objetivo=$F$2,ROW(Actividad)-MIN(ROW(Actividad))+1),ROWS($B$3:B53)))&CHAR(10),\"\")","v":""},null,{"$f":"IFERROR(INDEX(Actividad,SMALL(IF(Objetivo=$H$2,ROW(Actividad)-MIN(ROW(Actividad))+1),ROWS($B$3:B53)))&CHAR(10),\"\")","v":""}]
[null,{"$f":"IFERROR(INDEX(Actividad,SMALL(IF(Objetivo=$B$2,ROW(Actividad)-MIN(ROW(Actividad))+1),ROWS($B$3:B54)))&\" \"&CHAR(10)&(INDEX(Resultado,SMALL(IF(Objetivo=$B$2,ROW(Resultado)-MIN(ROW(Resultado))+1),ROWS($B$3:B54))))&CHAR(10),\"\")","v":""},null,{"$f":"IFERROR(INDEX(Actividad,SMALL(IF(Objetivo=$D$2,ROW(Actividad)-MIN(ROW(Actividad))+1),ROWS($B$3:B54)))&CHAR(10),\"\")","v":""},null,{"$f":"IFERROR(INDEX(Actividad,SMALL(IF(Objetivo=$F$2,ROW(Actividad)-MIN(ROW(Actividad))+1),ROWS($B$3:B54)))&CHAR(10),\"\")","v":""},null,{"$f":"IFERROR(INDEX(Actividad,SMALL(IF(Objetivo=$H$2,ROW(Actividad)-MIN(ROW(Actividad))+1),ROWS($B$3:B54)))&CHAR(10),\"\")","v":""}]
[null,{"$f":"IFERROR(INDEX(Actividad,SMALL(IF(Objetivo=$B$2,ROW(Actividad)-MIN(ROW(Actividad))+1),ROWS($B$3:B55)))&\" \"&CHAR(10)&(INDEX(Resultado,SMALL(IF(Objetivo=$B$2,ROW(Resultado)-MIN(ROW(Resultado))+1),ROWS($B$3:B55))))&CHAR(10),\"\")","v":""},null,{"$f":"IFERROR(INDEX(Actividad,SMALL(IF(Objetivo=$D$2,ROW(Actividad)-MIN(ROW(Actividad))+1),ROWS($B$3:B55)))&CHAR(10),\"\")","v":""},null,{"$f":"IFERROR(INDEX(Actividad,SMALL(IF(Objetivo=$F$2,ROW(Actividad)-MIN(ROW(Actividad))+1),ROWS($B$3:B55)))&CHAR(10),\"\")","v":""},null,{"$f":"IFERROR(INDEX(Actividad,SMALL(IF(Objetivo=$H$2,ROW(Actividad)-MIN(ROW(Actividad))+1),ROWS($B$3:B55)))&CHAR(10),\"\")","v":""}]
[null,{"$f":"IFERROR(INDEX(Actividad,SMALL(IF(Objetivo=$B$2,ROW(Actividad)-MIN(ROW(Actividad))+1),ROWS($B$3:B56)))&\" \"&CHAR(10)&(INDEX(Resultado,SMALL(IF(Objetivo=$B$2,ROW(Resultado)-MIN(ROW(Resultado))+1),ROWS($B$3:B56))))&CHAR(10),\"\")","v":""},null,{"$f":"IFERROR(INDEX(Actividad,SMALL(IF(Objetivo=$D$2,ROW(Actividad)-MIN(ROW(Actividad))+1),ROWS($B$3:B56)))&CHAR(10),\"\")","v":""},null,{"$f":"IFERROR(INDEX(Actividad,SMALL(IF(Objetivo=$F$2,ROW(Actividad)-MIN(ROW(Actividad))+1),ROWS($B$3:B56)))&CHAR(10),\"\")","v":""},null,{"$f":"IFERROR(INDEX(Actividad,SMALL(IF(Objetivo=$H$2,ROW(Actividad)-MIN(ROW(Actividad))+1),ROWS($B$3:B56)))&CHAR(10),\"\")","v":""}]
[null,{"$f":"IFERROR(INDEX(Actividad,SMALL(IF(Objetivo=$B$2,ROW(Actividad)-MIN(ROW(Actividad))+1),ROWS($B$3:B57)))&\" \"&CHAR(10)&(INDEX(Resultado,SMALL(IF(Objetivo=$B$2,ROW(Resultado)-MIN(ROW(Resultado))+1),ROWS($B$3:B57))))&CHAR(10),\"\")","v":""},null,{"$f":"IFERROR(INDEX(Actividad,SMALL(IF(Objetivo=$D$2,ROW(Actividad)-MIN(ROW(Actividad))+1),ROWS($B$3:B57)))&CHAR(10),\"\")","v":""},null,{"$f":"IFERROR(INDEX(Actividad,SMALL(IF(Objetivo=$F$2,ROW(Actividad)-MIN(ROW(Actividad))+1),ROWS($B$3:B57)))&CHAR(10),\"\")","v":""},null,{"$f":"IFERROR(INDEX(Actividad,SMALL(IF(Objetivo=$H$2,ROW(Actividad)-MIN(ROW(Actividad))+1),ROWS($B$3:B57)))&CHAR(10),\"\")","v":""}]
[null,{"$f":"IFERROR(INDEX(Actividad,SMALL(IF(Objetivo=$B$2,ROW(Actividad)-MIN(ROW(Actividad))+1),ROWS($B$3:B58)))&\" \"&CHAR(10)&(INDEX(Resultado,SMALL(IF(Objetivo=$B$2,ROW(Resultado)-MIN(ROW(Resultado))+1),ROWS($B$3:B58))))&CHAR(10),\"\")","v":""},null,{"$f":"IFERROR(INDEX(Actividad,SMALL(IF(Objetivo=$D$2,ROW(Actividad)-MIN(ROW(Actividad))+1),ROWS($B$3:B58)))&CHAR(10),\"\")","v":""},null,{"$f":"IFERROR(INDEX(Actividad,SMALL(IF(Objetivo=$F$2,ROW(Actividad)-MIN(ROW(Actividad))+1),ROWS($B$3:B58)))&CHAR(10),\"\")","v":""},null,{"$f":"IFERROR(INDEX(Actividad,SMALL(IF(Objetivo=$H$2,ROW(Actividad)-MIN(ROW(Actividad))+1),ROWS($B$3:B58)))&CHAR(10),\"\")","v":""}]
[null,{"$f":"IFERROR(INDEX(Actividad,SMALL(IF(Objetivo=$B$2,ROW(Actividad)-MIN(ROW(Actividad))+1),ROWS($B$3:B59)))&\" \"&CHAR(10)&(INDEX(Resultado,SMALL(IF(Objetivo=$B$2,ROW(Resultado)-MIN(ROW(Resultado))+1),ROWS($B$3:B59))))&CHAR(10),\"\")","v":""},null,{"$f":"IFERROR(INDEX(Actividad,SMALL(IF(Objetivo=$D$2,ROW(Actividad)-MIN(ROW(Actividad))+1),ROWS($B$3:B59)))&CHAR(10),\"\")","v":""},null,{"$f":"IFERROR(INDEX(Actividad,SMALL(IF(Objetivo=$F$2,ROW(Actividad)-MIN(ROW(Actividad))+1),ROWS($B$3:B59)))&CHAR(10),\"\")","v":""},null,{"$f":"IFERROR(INDEX(Actividad,SMALL(IF(Objetivo=$H$2,ROW(Actividad)-MIN(ROW(Actividad))+1),ROWS($B$3:B59)))&CHAR(10),\"\")","v":""}]
[null,{"$f":"IFERROR(INDEX(Actividad,SMALL(IF(Objetivo=$B$2,ROW(Actividad)-MIN(ROW(Actividad))+1),ROWS($B$3:B60)))&\" \"&CHAR(10)&(INDEX(Resultado,SMALL(IF(Objetivo=$B$2,ROW(Resultado)-MIN(ROW(Resultado))+1),ROWS($B$3:B60))))&CHAR(10),\"\")","v":""},null,{"$f":"IFERROR(INDEX(Actividad,SMALL(IF(Objetivo=$D$2,ROW(Actividad)-MIN(ROW(Actividad))+1),ROWS($B$3:B60)))&CHAR(10),\"\")","v":""},null,{"$f":"IFERROR(INDEX(Actividad,SMALL(IF(Objetivo=$F$2,ROW(Actividad)-MIN(ROW(Actividad))+1),ROWS($B$3:B60)))&CHAR(10),\"\")","v":""},null,{"$f":"IFERROR(INDEX(Actividad,SMALL(IF(Objetivo=$H$2,ROW(Actividad)-MIN(ROW(Actividad))+1),ROWS($B$3:B60)))&CHAR(10),\"\")","v":""}]
[null,{"$f":"IFERROR(INDEX(Actividad,SMALL(IF(Objetivo=$B$2,ROW(Actividad)-MIN(ROW(Actividad))+1),ROWS($B$3:B61)))&\" \"&CHAR(10)&(INDEX(Resultado,SMALL(IF(Objetivo=$B$2,ROW(Resultado)-MIN(ROW(Resultado))+1),ROWS($B$3:B61))))&CHAR(10),\"\")","v":""},null,{"$f":"IFERROR(INDEX(Actividad,SMALL(IF(Objetivo=$D$2,ROW(Actividad)-MIN(ROW(Actividad))+1),ROWS($B$3:B61)))&CHAR(10),\"\")","v":""},null,{"$f":"IFERROR(INDEX(Actividad,SMALL(IF(Objetivo=$F$2,ROW(Actividad)-MIN(ROW(Actividad))+1),ROWS($B$3:B61)))&CHAR(10),\"\")","v":""},null,{"$f":"IFERROR(INDEX(Actividad,SMALL(IF(Objetivo=$H$2,ROW(Actividad)-MIN(ROW(Actividad))+1),ROWS($B$3:B61)))&CHAR(10),\"\")","v":""}]
[null,{"$f":"IFERROR(INDEX(Actividad,SMALL(IF(Objetivo=$B$2,ROW(Actividad)-MIN(ROW(Actividad))+1),ROWS($B$3:B62)))&\" \"&CHAR(10)&(INDEX(Resultado,SMALL(IF(Objetivo=$B$2,ROW(Resultado)-MIN(ROW(Resultado))+1),ROWS($B$3:B62))))&CHAR(10),\"\")","v":""},null,{"$f":"IFERROR(INDEX(Actividad,SMALL(IF(Objetivo=$D$2,ROW(Actividad)-MIN(ROW(Actividad))+1),ROWS($B$3:B62)))&CHAR(10),\"\")","v":""},null,{"$f":"IFERROR(INDEX(Actividad,SMALL(IF(Objetivo=$F$2,ROW(Actividad)-MIN(ROW(Actividad))+1),ROWS($B$3:B62)))&CHAR(10),\"\")","v":""},null,{"$f":"IFERROR(INDEX(Actividad,SMALL(IF(Objetivo=$H$2,ROW(Actividad)-MIN(ROW(Actividad))+1),ROWS($B$3:B62)))&CHAR(10),\"\")","v":""}]
[null,{"$f":"IFERROR(INDEX(Actividad,SMALL(IF(Objetivo=$B$2,ROW(Actividad)-MIN(ROW(Actividad))+1),ROWS($B$3:B63)))&\" \"&CHAR(10)&(INDEX(Resultado,SMALL(IF(Objetivo=$B$2,ROW(Resultado)-MIN(ROW(Resultado))+1),ROWS($B$3:B63))))&CHAR(10),\"\")","v":""},null,{"$f":"IFERROR(INDEX(Actividad,SMALL(IF(Objetivo=$D$2,ROW(Actividad)-MIN(ROW(Actividad))+1),ROWS($B$3:B63)))&CHAR(10),\"\")","v":""},null,{"$f":"IFERROR(INDEX(Actividad,SMALL(IF(Objetivo=$F$2,ROW(Actividad)-MIN(ROW(Actividad))+1),ROWS($B$3:B63)))&CHAR(10),\"\")","v":""},null,{"$f":"IFERROR(INDEX(Actividad,SMALL(IF(Objetivo=$H$2,ROW(Actividad)-MIN(ROW(Actividad))+1),ROWS($B$3:B63)))&CHAR(10),\"\")","v":""}]
[null,{"$f":"IFERROR(INDEX(Actividad,SMALL(IF(Objetivo=$B$2,ROW(Actividad)-MIN(ROW(Actividad))+1),ROWS($B$3:B64)))&\" \"&CHAR(10)&(INDEX(Resultado,SMALL(IF(Objetivo=$B$2,ROW(Resultado)-MIN(ROW(Resultado))+1),ROWS($B$3:B64))))&CHAR(10),\"\")","v":""},null,{"$f":"IFERROR(INDEX(Actividad,SMALL(IF(Objetivo=$D$2,ROW(Actividad)-MIN(ROW(Actividad))+1),ROWS($B$3:B64)))&CHAR(10),\"\")","v":""},null,{"$f":"IFERROR(INDEX(Actividad,SMALL(IF(Objetivo=$F$2,ROW(Actividad)-MIN(ROW(Actividad))+1),ROWS($B$3:B64)))&CHAR(10),\"\")","v":""},null,{"$f":"IFERROR(INDEX(Actividad,SMALL(IF(Objetivo=$H$2,ROW(Actividad)-MIN(ROW(Actividad))+1),ROWS($B$3:B64)))&CHAR(10),\"\")","v":""}]
[null,{"$f":"IFERROR(INDEX(Actividad,SMALL(IF(Objetivo=$B$2,ROW(Actividad)-MIN(ROW(Actividad))+1),ROWS($B$3:B65)))&\" \"&CHAR(10)&(INDEX(Resultado,SMALL(IF(Objetivo=$B$2,ROW(Resultado)-MIN(ROW(Resultado))+1),ROWS($B$3:B65))))&CHAR(10),\"\")","v":""},null,{"$f":"IFERROR(INDEX(Actividad,SMALL(IF(Objetivo=$D$2,ROW(Actividad)-MIN(ROW(Actividad))+1),ROWS($B$3:B65)))&CHAR(10),\"\")","v":""},null,{"$f":"IFERROR(INDEX(Actividad,SMALL(IF(Objetivo=$F$2,ROW(Actividad)-MIN(ROW(Actividad))+1),ROWS($B$3:B65)))&CHAR(10),\"\")","v":""},null,{"$f":"IFERROR(INDEX(Actividad,SMALL(IF(Objetivo=$H$2,ROW(Actividad)-MIN(ROW(Actividad))+1),ROWS($B$3:B65)))&CHAR(10),\"\")","v":""}]
[null,{"$f":"IFERROR(INDEX(Actividad,SMALL(IF(Objetivo=$B$2,ROW(Actividad)-MIN(ROW(Actividad))+1),ROWS($B$3:B66)))&\" \"&CHAR(10)&(INDEX(Resultado,SMALL(IF(Objetivo=$B$2,ROW(Resultado)-MIN(ROW(Resultado))+1),ROWS($B$3:B66))))&CHAR(10),\"\")","v":""},null,{"$f":"IFERROR(INDEX(Actividad,SMALL(IF(Objetivo=$D$2,ROW(Actividad)-MIN(ROW(Actividad))+1),ROWS($B$3:B66)))&CHAR(10),\"\")","v":""},null,{"$f":"IFERROR(INDEX(Actividad,SMALL(IF(Objetivo=$F$2,ROW(Actividad)-MIN(ROW(Actividad))+1),ROWS($B$3:B66)))&CHAR(10),\"\")","v":""},null,{"$f":"IFERROR(INDEX(Actividad,SMALL(IF(Objetivo=$H$2,ROW(Actividad)-MIN(ROW(Actividad))+1),ROWS($B$3:B66)))&CHAR(10),\"\")","v":""}]
[null,{"$f":"IFERROR(INDEX(Actividad,SMALL(IF(Objetivo=$B$2,ROW(Actividad)-MIN(ROW(Actividad))+1),ROWS($B$3:B67)))&\" \"&CHAR(10)&(INDEX(Resultado,SMALL(IF(Objetivo=$B$2,ROW(Resultado)-MIN(ROW(Resultado))+1),ROWS($B$3:B67))))&CHAR(10),\"\")","v":""},null,{"$f":"IFERROR(INDEX(Actividad,SMALL(IF(Objetivo=$D$2,ROW(Actividad)-MIN(ROW(Actividad))+1),ROWS($B$3:B67)))&CHAR(10),\"\")","v":""},null,{"$f":"IFERROR(INDEX(Actividad,SMALL(IF(Objetivo=$F$2,ROW(Actividad)-MIN(ROW(Actividad))+1),ROWS($B$3:B67)))&CHAR(10),\"\")","v":""},null,{"$f":"IFERROR(INDEX(Actividad,SMALL(IF(Objetivo=$H$2,ROW(Actividad)-MIN(ROW(Actividad))+1),ROWS($B$3:B67)))&CHAR(10),\"\")","v":""}]
[null,{"$f":"IFERROR(INDEX(Actividad,SMALL(IF(Objetivo=$B$2,ROW(Actividad)-MIN(ROW(Actividad))+1),ROWS($B$3:B68)))&\" \"&CHAR(10)&(INDEX(Resultado,SMALL(IF(Objetivo=$B$2,ROW(Resultado)-MIN(ROW(Resultado))+1),ROWS($B$3:B68))))&CHAR(10),\"\")","v":""},null,{"$f":"IFERROR(INDEX(Actividad,SMALL(IF(Objetivo=$D$2,ROW(Actividad)-MIN(ROW(Actividad))+1),ROWS($B$3:B68)))&CHAR(10),\"\")","v":""},null,{"$f":"IFERROR(INDEX(Actividad,SMALL(IF(Objetivo=$F$2,ROW(Actividad)-MIN(ROW(Actividad))+1),ROWS($B$3:B68)))&CHAR(10),\"\")","v":""},null,{"$f":"IFERROR(INDEX(Actividad,SMALL(IF(Objetivo=$H$2,ROW(Actividad)-MIN(ROW(Actividad))+1),ROWS($B$3:B68)))&CHAR(10),\"\")","v":""}]
[null,{"$f":"IFERROR(INDEX(Actividad,SMALL(IF(Objetivo=$B$2,ROW(Actividad)-MIN(ROW(Actividad))+1),ROWS($B$3:B69)))&\" \"&CHAR(10)&(INDEX(Resultado,SMALL(IF(Objetivo=$B$2,ROW(Resultado)-MIN(ROW(Resultado))+1),ROWS($B$3:B69))))&CHAR(10),\"\")","v":""},null,{"$f":"IFERROR(INDEX(Actividad,SMALL(IF(Objetivo=$D$2,ROW(Actividad)-MIN(ROW(Actividad))+1),ROWS($B$3:B69)))&CHAR(10),\"\")","v":""},null,{"$f":"IFERROR(INDEX(Actividad,SMALL(IF(Objetivo=$F$2,ROW(Actividad)-MIN(ROW(Actividad))+1),ROWS($B$3:B69)))&CHAR(10),\"\")","v":""},null,{"$f":"IFERROR(INDEX(Actividad,SMALL(IF(Objetivo=$H$2,ROW(Actividad)-MIN(ROW(Actividad))+1),ROWS($B$3:B69)))&CHAR(10),\"\")","v":""}]
[null,{"$f":"IFERROR(INDEX(Actividad,SMALL(IF(Objetivo=$B$2,ROW(Actividad)-MIN(ROW(Actividad))+1),ROWS($B$3:B70)))&\" \"&CHAR(10)&(INDEX(Resultado,SMALL(IF(Objetivo=$B$2,ROW(Resultado)-MIN(ROW(Resultado))+1),ROWS($B$3:B70))))&CHAR(10),\"\")","v":""},null,{"$f":"IFERROR(INDEX(Actividad,SMALL(IF(Objetivo=$D$2,ROW(Actividad)-MIN(ROW(Actividad))+1),ROWS($B$3:B70)))&CHAR(10),\"\")","v":""},null,{"$f":"IFERROR(INDEX(Actividad,SMALL(IF(Objetivo=$F$2,ROW(Actividad)-MIN(ROW(Actividad))+1),ROWS($B$3:B70)))&CHAR(10),\"\")","v":""},null,{"$f":"IFERROR(INDEX(Actividad,SMALL(IF(Objetivo=$H$2,ROW(Actividad)-MIN(ROW(Actividad))+1),ROWS($B$3:B70)))&CHAR(10),\"\")","v":""}]
[null,{"$f":"IFERROR(INDEX(Actividad,SMALL(IF(Objetivo=$B$2,ROW(Actividad)-MIN(ROW(Actividad))+1),ROWS($B$3:B71)))&\" \"&CHAR(10)&(INDEX(Resultado,SMALL(IF(Objetivo=$B$2,ROW(Resultado)-MIN(ROW(Resultado))+1),ROWS($B$3:B71))))&CHAR(10),\"\")","v":""},null,{"$f":"IFERROR(INDEX(Actividad,SMALL(IF(Objetivo=$D$2,ROW(Actividad)-MIN(ROW(Actividad))+1),ROWS($B$3:B71)))&CHAR(10),\"\")","v":""},null,{"$f":"IFERROR(INDEX(Actividad,SMALL(IF(Objetivo=$F$2,ROW(Actividad)-MIN(ROW(Actividad))+1),ROWS($B$3:B71)))&CHAR(10),\"\")","v":""},null,{"$f":"IFERROR(INDEX(Actividad,SMALL(IF(Objetivo=$H$2,ROW(Actividad)-MIN(ROW(Actividad))+1),ROWS($B$3:B71)))&CHAR(10),\"\")","v":""}]
[null,{"$f":"IFERROR(INDEX(Actividad,SMALL(IF(Objetivo=$B$2,ROW(Actividad)-MIN(ROW(Actividad))+1),ROWS($B$3:B72)))&\" \"&CHAR(10)&(INDEX(Resultado,SMALL(IF(Objetivo=$B$2,ROW(Resultado)-MIN(ROW(Resultado))+1),ROWS($B$3:B72))))&CHAR(10),\"\")","v":""},null,{"$f":"IFERROR(INDEX(Actividad,SMALL(IF(Objetivo=$D$2,ROW(Actividad)-MIN(ROW(Actividad))+1),ROWS($B$3:B72)))&CHAR(10),\"\")","v":""},null,{"$f":"IFERROR(INDEX(Actividad,SMALL(IF(Objetivo=$F$2,ROW(Actividad)-MIN(ROW(Actividad))+1),ROWS($B$3:B72)))&CHAR(10),\"\")","v":""},null,{"$f":"IFERROR(INDEX(Actividad,SMALL(IF(Objetivo=$H$2,ROW(Actividad)-MIN(ROW(Actividad))+1),ROWS($B$3:B72)))&CHAR(10),\"\")","v":""}]
[null,{"$f":"IFERROR(INDEX(Actividad,SMALL(IF(Objetivo=$B$2,ROW(Actividad)-MIN(ROW(Actividad))+1),ROWS($B$3:B73)))&\" \"&CHAR(10)&(INDEX(Resultado,SMALL(IF(Objetivo=$B$2,ROW(Resultado)-MIN(ROW(Resultado))+1),ROWS($B$3:B73))))&CHAR(10),\"\")","v":""},null,{"$f":"IFERROR(INDEX(Actividad,SMALL(IF(Objetivo=$D$2,ROW(Actividad)-MIN(ROW(Actividad))+1),ROWS($B$3:B73)))&CHAR(10),\"\")","v":""},null,{"$f":"IFERROR(INDEX(Actividad,SMALL(IF(Objetivo=$F$2,ROW(Actividad)-MIN(ROW(Actividad))+1),ROWS($B$3:B73)))&CHAR(10),\"\")","v":""},null,{"$f":"IFERROR(INDEX(Actividad,SMALL(IF(Objetivo=$H$2,ROW(Actividad)-MIN(ROW(Actividad))+1),ROWS($B$3:B73)))&CHAR(10),\"\")","v":""}]
[null,{"$f":"IFERROR(INDEX(Actividad,SMALL(IF(Objetivo=$B$2,ROW(Actividad)-MIN(ROW(Actividad))+1),ROWS($B$3:B74)))&\" \"&CHAR(10)&(INDEX(Resultado,SMALL(IF(Objetivo=$B$2,ROW(Resultado)-MIN(ROW(Resultado))+1),ROWS($B$3:B74))))&CHAR(10),\"\")","v":""},null,{"$f":"IFERROR(INDEX(Actividad,SMALL(IF(Objetivo=$D$2,ROW(Actividad)-MIN(ROW(Actividad))+1),ROWS($B$3:B74)))&CHAR(10),\"\")","v":""},null,{"$f":"IFERROR(INDEX(Actividad,SMALL(IF(Objetivo=$F$2,ROW(Actividad)-MIN(ROW(Actividad))+1),ROWS($B$3:B74)))&CHAR(10),\"\")","v":""},null,{"$f":"IFERROR(INDEX(Actividad,SMALL(IF(Objetivo=$H$2,ROW(Actividad)-MIN(ROW(Actividad))+1),ROWS($B$3:B74)))&CHAR(10),\"\")","v":""}]
[null,{"$f":"IFERROR(INDEX(Actividad,SMALL(IF(Objetivo=$B$2,ROW(Actividad)-MIN(ROW(Actividad))+1),ROWS($B$3:B75)))&\" \"&CHAR(10)&(INDEX(Resultado,SMALL(IF(Objetivo=$B$2,ROW(Resultado)-MIN(ROW(Resultado))+1),ROWS($B$3:B75))))&CHAR(10),\"\")","v":""},null,{"$f":"IFERROR(INDEX(Actividad,SMALL(IF(Objetivo=$D$2,ROW(Actividad)-MIN(ROW(Actividad))+1),ROWS($B$3:B75)))&CHAR(10),\"\")","v":""},null,{"$f":"IFERROR(INDEX(Actividad,SMALL(IF(Objetivo=$F$2,ROW(Actividad)-MIN(ROW(Actividad))+1),ROWS($B$3:B75)))&CHAR(10),\"\")","v":""},null,{"$f":"IFERROR(INDEX(Actividad,SMALL(IF(Objetivo=$H$2,ROW(Actividad)-MIN(ROW(Actividad))+1),ROWS($B$3:B75)))&CHAR(10),\"\")","v":""}]
[null,{"$f":"IFERROR(INDEX(Actividad,SMALL(IF(Objetivo=$B$2,ROW(Actividad)-MIN(ROW(Actividad))+1),ROWS($B$3:B76)))&\" \"&CHAR(10)&(INDEX(Resultado,SMALL(IF(Objetivo=$B$2,ROW(Resultado)-MIN(ROW(Resultado))+1),ROWS($B$3:B76))))&CHAR(10),\"\")","v":""},null,{"$f":"IFERROR(INDEX(Actividad,SMALL(IF(Objetivo=$D$2,ROW(Actividad)-MIN(ROW(Actividad))+1),ROWS($B$3:B76)))&CHAR(10),\"\")","v":""},null,{"$f":"IFERROR(INDEX(Actividad,SMALL(IF(Objetivo=$F$2,ROW(Actividad)-MIN(ROW(Actividad))+1),ROWS($B$3:B76)))&CHAR(10),\"\")","v":""},null,{"$f":"IFERROR(INDEX(Actividad,SMALL(IF(Objetivo=$H$2,ROW(Actividad)-MIN(ROW(Actividad))+1),ROWS($B$3:B76)))&CHAR(10),\"\")","v":""}]
[null,{"$f":"IFERROR(INDEX(Actividad,SMALL(IF(Objetivo=$B$2,ROW(Actividad)-MIN(ROW(Actividad))+1),ROWS($B$3:B77)))&\" \"&CHAR(10)&(INDEX(Resultado,SMALL(IF(Objetivo=$B$2,ROW(Resultado)-MIN(ROW(Resultado))+1),ROWS($B$3:B77))))&CHAR(10),\"\")","v":""},null,{"$f":"IFERROR(INDEX(Actividad,SMALL(IF(Objetivo=$D$2,ROW(Actividad)-MIN(ROW(Actividad))+1),ROWS($B$3:B77)))&CHAR(10),\"\")","v":""},null,{"$f":"IFERROR(INDEX(Actividad,SMALL(IF(Objetivo=$F$2,ROW(Actividad)-MIN(ROW(Actividad))+1),ROWS($B$3:B77)))&CHAR(10),\"\")","v":""},null,{"$f":"IFERROR(INDEX(Actividad,SMALL(IF(Objetivo=$H$2,ROW(Actividad)-MIN(ROW(Actividad))+1),ROWS($B$3:B77)))&CHAR(10),\"\")","v":""}]
[null,{"$f":"IFERROR(INDEX(Actividad,SMALL(IF(Objetivo=$B$2,ROW(Actividad)-MIN(ROW(Actividad))+1),ROWS($B$3:B78)))&\" \"&CHAR(10)&(INDEX(Resultado,SMALL(IF(Objetivo=$B$2,ROW(Resultado)-MIN(ROW(Resultado))+1),ROWS($B$3:B78))))&CHAR(10),\"\")","v":""},null,{"$f":"IFERROR(INDEX(Actividad,SMALL(IF(Objetivo=$D$2,ROW(Actividad)-MIN(ROW(Actividad))+1),ROWS($B$3:B78)))&CHAR(10),\"\")","v":""},null,{"$f":"IFERROR(INDEX(Actividad,SMALL(IF(Objetivo=$F$2,ROW(Actividad)-MIN(ROW(Actividad))+1),ROWS($B$3:B78)))&CHAR(10),\"\")","v":""},null,{"$f":"IFERROR(INDEX(Actividad,SMALL(IF(Objetivo=$H$2,ROW(Actividad)-MIN(ROW(Actividad))+1),ROWS($B$3:B78)))&CHAR(10),\"\")","v":""}]
[null,{"$f":"IFERROR(INDEX(Actividad,SMALL(IF(Objetivo=$B$2,ROW(Actividad)-MIN(ROW(Actividad))+1),ROWS($B$3:B79)))&\" \"&CHAR(10)&(INDEX(Resultado,SMALL(IF(Objetivo=$B$2,ROW(Resultado)-MIN(ROW(Resultado))+1),ROWS($B$3:B79))))&CHAR(10),\"\")","v":""},null,{"$f":"IFERROR(INDEX(Actividad,SMALL(IF(Objetivo=$D$2,ROW(Actividad)-MIN(ROW(Actividad))+1),ROWS($B$3:B79)))&CHAR(10),\"\")","v":""},null,{"$f":"IFERROR(INDEX(Actividad,SMALL(IF(Objetivo=$F$2,ROW(Actividad)-MIN(ROW(Actividad))+1),ROWS($B$3:B79)))&CHAR(10),\"\")","v":""},null,{"$f":"IFERROR(INDEX(Actividad,SMALL(IF(Objetivo=$H$2,ROW(Actividad)-MIN(ROW(Actividad))+1),ROWS($B$3:B79)))&CHAR(10),\"\")","v":""}]
[null,{"$f":"IFERROR(INDEX(Actividad,SMALL(IF(Objetivo=$B$2,ROW(Actividad)-MIN(ROW(Actividad))+1),ROWS($B$3:B80)))&\" \"&CHAR(10)&(INDEX(Resultado,SMALL(IF(Objetivo=$B$2,ROW(Resultado)-MIN(ROW(Resultado))+1),ROWS($B$3:B80))))&CHAR(10),\"\")","v":""},null,{"$f":"IFERROR(INDEX(Actividad,SMALL(IF(Objetivo=$D$2,ROW(Actividad)-MIN(ROW(Actividad))+1),ROWS($B$3:B80)))&CHAR(10),\"\")","v":""},null,{"$f":"IFERROR(INDEX(Actividad,SMALL(IF(Objetivo=$F$2,ROW(Actividad)-MIN(ROW(Actividad))+1),ROWS($B$3:B80)))&CHAR(10),\"\")","v":""},null,{"$f":"IFERROR(INDEX(Actividad,SMALL(IF(Objetivo=$H$2,ROW(Actividad)-MIN(ROW(Actividad))+1),ROWS($B$3:B80)))&CHAR(10),\"\")","v":""}]
[null,{"$f":"IFERROR(INDEX(Actividad,SMALL(IF(Objetivo=$B$2,ROW(Actividad)-MIN(ROW(Actividad))+1),ROWS($B$3:B81)))&\" \"&CHAR(10)&(INDEX(Resultado,SMALL(IF(Objetivo=$B$2,ROW(Resultado)-MIN(ROW(Resultado))+1),ROWS($B$3:B81))))&CHAR(10),\"\")","v":""},null,{"$f":"IFERROR(INDEX(Actividad,SMALL(IF(Objetivo=$D$2,ROW(Actividad)-MIN(ROW(Actividad))+1),ROWS($B$3:B81)))&CHAR(10),\"\")","v":""},null,{"$f":"IFERROR(INDEX(Actividad,SMALL(IF(Objetivo=$F$2,ROW(Actividad)-MIN(ROW(Actividad))+1),ROWS($B$3:B81)))&CHAR(10),\"\")","v":""},null,{"$f":"IFERROR(INDEX(Actividad,SMALL(IF(Objetivo=$H$2,ROW(Actividad)-MIN(ROW(Actividad))+1),ROWS($B$3:B81)))&CHAR(10),\"\")","v":""}]
[null,{"$f":"IFERROR(INDEX(Actividad,SMALL(IF(Objetivo=$B$2,ROW(Actividad)-MIN(ROW(Actividad))+1),ROWS($B$3:B82)))&\" \"&CHAR(10)&(INDEX(Resultado,SMALL(IF(Objetivo=$B$2,ROW(Resultado)-MIN(ROW(Resultado))+1),ROWS($B$3:B82))))&CHAR(10),\"\")","v":""},null,{"$f":"IFERROR(INDEX(Actividad,SMALL(IF(Objetivo=$D$2,ROW(Actividad)-MIN(ROW(Actividad))+1),ROWS($B$3:B82)))&CHAR(10),\"\")","v":""},null,{"$f":"IFERROR(INDEX(Actividad,SMALL(IF(Objetivo=$F$2,ROW(Actividad)-MIN(ROW(Actividad))+1),ROWS($B$3:B82)))&CHAR(10),\"\")","v":""},null,{"$f":"IFERROR(INDEX(Actividad,SMALL(IF(Objetivo=$H$2,ROW(Actividad)-MIN(ROW(Actividad))+1),ROWS($B$3:B82)))&CHAR(10),\"\")","v":""}]
[null,{"$f":"IFERROR(INDEX(Actividad,SMALL(IF(Objetivo=$B$2,ROW(Actividad)-MIN(ROW(Actividad))+1),ROWS($B$3:B83)))&\" \"&CHAR(10)&(INDEX(Resultado,SMALL(IF(Objetivo=$B$2,ROW(Resultado)-MIN(ROW(Resultado))+1),ROWS($B$3:B83))))&CHAR(10),\"\")","v":""},null,{"$f":"IFERROR(INDEX(Actividad,SMALL(IF(Objetivo=$D$2,ROW(Actividad)-MIN(ROW(Actividad))+1),ROWS($B$3:B83)))&CHAR(10),\"\")","v":""},null,{"$f":"IFERROR(INDEX(Actividad,SMALL(IF(Objetivo=$F$2,ROW(Actividad)-MIN(ROW(Actividad))+1),ROWS($B$3:B83)))&CHAR(10),\"\")","v":""},null,{"$f":"IFERROR(INDEX(Actividad,SMALL(IF(Objetivo=$H$2,ROW(Actividad)-MIN(ROW(Actividad))+1),ROWS($B$3:B83)))&CHAR(10),\"\")","v":""}]
[null,{"$f":"IFERROR(INDEX(Actividad,SMALL(IF(Objetivo=$B$2,ROW(Actividad)-MIN(ROW(Actividad))+1),ROWS($B$3:B84)))&\" \"&CHAR(10)&(INDEX(Resultado,SMALL(IF(Objetivo=$B$2,ROW(Resultado)-MIN(ROW(Resultado))+1),ROWS($B$3:B84))))&CHAR(10),\"\")","v":""},null,{"$f":"IFERROR(INDEX(Actividad,SMALL(IF(Objetivo=$D$2,ROW(Actividad)-MIN(ROW(Actividad))+1),ROWS($B$3:B84)))&CHAR(10),\"\")","v":""},null,{"$f":"IFERROR(INDEX(Actividad,SMALL(IF(Objetivo=$F$2,ROW(Actividad)-MIN(ROW(Actividad))+1),ROWS($B$3:B84)))&CHAR(10),\"\")","v":""},null,{"$f":"IFERROR(INDEX(Actividad,SMALL(IF(Objetivo=$H$2,ROW(Actividad)-MIN(ROW(Actividad))+1),ROWS($B$3:B84)))&CHAR(10),\"\")","v":""}]
[null,{"$f":"IFERROR(INDEX(Actividad,SMALL(IF(Objetivo=$B$2,ROW(Actividad)-MIN(ROW(Actividad))+1),ROWS($B$3:B85)))&\" \"&CHAR(10)&(INDEX(Resultado,SMALL(IF(Objetivo=$B$2,ROW(Resultado)-MIN(ROW(Resultado))+1),ROWS($B$3:B85))))&CHAR(10),\"\")","v":""},null,{"$f":"IFERROR(INDEX(Actividad,SMALL(IF(Objetivo=$D$2,ROW(Actividad)-MIN(ROW(Actividad))+1),ROWS($B$3:B85)))&CHAR(10),\"\")","v":""},null,{"$f":"IFERROR(INDEX(Actividad,SMALL(IF(Objetivo=$F$2,ROW(Actividad)-MIN(ROW(Actividad))+1),ROWS($B$3:B85)))&CHAR(10),\"\")","v":""},null,{"$f":"IFERROR(INDEX(Actividad,SMALL(IF(Objetivo=$H$2,ROW(Actividad)-MIN(ROW(Actividad))+1),ROWS($B$3:B85)))&CHAR(10),\"\")","v":""}]
[null,{"$f":"IFERROR(INDEX(Actividad,SMALL(IF(Objetivo=$B$2,ROW(Actividad)-MIN(ROW(Actividad))+1),ROWS($B$3:B86)))&\" \"&CHAR(10)&(INDEX(Resultado,SMALL(IF(Objetivo=$B$2,ROW(Resultado)-MIN(ROW(Resultado))+1),ROWS($B$3:B86))))&CHAR(10),\"\")","v":""},null,{"$f":"IFERROR(INDEX(Actividad,SMALL(IF(Objetivo=$D$2,ROW(Actividad)-MIN(ROW(Actividad))+1),ROWS($B$3:B86)))&CHAR(10),\"\")","v":""},null,{"$f":"IFERROR(INDEX(Actividad,SMALL(IF(Objetivo=$F$2,ROW(Actividad)-MIN(ROW(Actividad))+1),ROWS($B$3:B86)))&CHAR(10),\"\")","v":""},null,{"$f":"IFERROR(INDEX(Actividad,SMALL(IF(Objetivo=$H$2,ROW(Actividad)-MIN(ROW(Actividad))+1),ROWS($B$3:B86)))&CHAR(10),\"\")","v":""}]
[null,{"$f":"IFERROR(INDEX(Actividad,SMALL(IF(Objetivo=$B$2,ROW(Actividad)-MIN(ROW(Actividad))+1),ROWS($B$3:B87)))&\" \"&CHAR(10)&(INDEX(Resultado,SMALL(IF(Objetivo=$B$2,ROW(Resultado)-MIN(ROW(Resultado))+1),ROWS($B$3:B87))))&CHAR(10),\"\")","v":""},null,{"$f":"IFERROR(INDEX(Actividad,SMALL(IF(Objetivo=$D$2,ROW(Actividad)-MIN(ROW(Actividad))+1),ROWS($B$3:B87)))&CHAR(10),\"\")","v":""},null,{"$f":"IFERROR(INDEX(Actividad,SMALL(IF(Objetivo=$F$2,ROW(Actividad)-MIN(ROW(Actividad))+1),ROWS($B$3:B87)))&CHAR(10),\"\")","v":""},null,{"$f":"IFERROR(INDEX(Actividad,SMALL(IF(Objetivo=$H$2,ROW(Actividad)-MIN(ROW(Actividad))+1),ROWS($B$3:B87)))&CHAR(10),\"\")","v":""}]
[null,{"$f":"IFERROR(INDEX(Actividad,SMALL(IF(Objetivo=$B$2,ROW(Actividad)-MIN(ROW(Actividad))+1),ROWS($B$3:B88)))&\" \"&CHAR(10)&(INDEX(Resultado,SMALL(IF(Objetivo=$B$2,ROW(Resultado)-MIN(ROW(Resultado))+1),ROWS($B$3:B88))))&CHAR(10),\"\")","v":""},null,{"$f":"IFERROR(INDEX(Actividad,SMALL(IF(Objetivo=$D$2,ROW(Actividad)-MIN(ROW(Actividad))+1),ROWS($B$3:B88)))&CHAR(10),\"\")","v":""},null,{"$f":"IFERROR(INDEX(Actividad,SMALL(IF(Objetivo=$F$2,ROW(Actividad)-MIN(ROW(Actividad))+1),ROWS($B$3:B88)))&CHAR(10),\"\")","v":""},null,{"$f":"IFERROR(INDEX(Actividad,SMALL(IF(Objetivo=$H$2,ROW(Actividad)-MIN(ROW(Actividad))+1),ROWS($B$3:B88)))&CHAR(10),\"\")","v":""}]
[null,{"$f":"IFERROR(INDEX(Actividad,SMALL(IF(Objetivo=$B$2,ROW(Actividad)-MIN(ROW(Actividad))+1),ROWS($B$3:B89)))&\" \"&CHAR(10)&(INDEX(Resultado,SMALL(IF(Objetivo=$B$2,ROW(Resultado)-MIN(ROW(Resultado))+1),ROWS($B$3:B89))))&CHAR(10),\"\")","v":""},null,{"$f":"IFERROR(INDEX(Actividad,SMALL(IF(Objetivo=$D$2,ROW(Actividad)-MIN(ROW(Actividad))+1),ROWS($B$3:B89)))&CHAR(10),\"\")","v":""},null,{"$f":"IFERROR(INDEX(Actividad,SMALL(IF(Objetivo=$F$2,ROW(Actividad)-MIN(ROW(Actividad))+1),ROWS($B$3:B89)))&CHAR(10),\"\")","v":""},null,{"$f":"IFERROR(INDEX(Actividad,SMALL(IF(Objetivo=$H$2,ROW(Actividad)-MIN(ROW(Actividad))+1),ROWS($B$3:B89)))&CHAR(10),\"\")","v":""}]
[null,{"$f":"IFERROR(INDEX(Actividad,SMALL(IF(Objetivo=$B$2,ROW(Actividad)-MIN(ROW(Actividad))+1),ROWS($B$3:B90)))&\" \"&CHAR(10)&(INDEX(Resultado,SMALL(IF(Objetivo=$B$2,ROW(Resultado)-MIN(ROW(Resultado))+1),ROWS($B$3:B90))))&CHAR(10),\"\")","v":""},null,{"$f":"IFERROR(INDEX(Actividad,SMALL(IF(Objetivo=$D$2,ROW(Actividad)-MIN(ROW(Actividad))+1),ROWS($B$3:B90)))&CHAR(10),\"\")","v":""},null,{"$f":"IFERROR(INDEX(Actividad,SMALL(IF(Objetivo=$F$2,ROW(Actividad)-MIN(ROW(Actividad))+1),ROWS($B$3:B90)))&CHAR(10),\"\")","v":""},null,{"$f":"IFERROR(INDEX(Actividad,SMALL(IF(Objetivo=$H$2,ROW(Actividad)-MIN(ROW(Actividad))+1),ROWS($B$3:B90)))&CHAR(10),\"\")","v":""}]
[null,{"$f":"IFERROR(INDEX(Actividad,SMALL(IF(Objetivo=$B$2,ROW(Actividad)-MIN(ROW(Actividad))+1),ROWS($B$3:B91)))&\" \"&CHAR(10)&(INDEX(Resultado,SMALL(IF(Objetivo=$B$2,ROW(Resultado)-MIN(ROW(Resultado))+1),ROWS($B$3:B91))))&CHAR(10),\"\")","v":""},null,{"$f":"IFERROR(INDEX(Actividad,SMALL(IF(Objetivo=$D$2,ROW(Actividad)-MIN(ROW(Actividad))+1),ROWS($B$3:B91)))&CHAR(10),\"\")","v":""},null,{"$f":"IFERROR(INDEX(Actividad,SMALL(IF(Objetivo=$F$2,ROW(Actividad)-MIN(ROW(Actividad))+1),ROWS($B$3:B91)))&CHAR(10),\"\")","v":""},null,{"$f":"IFERROR(INDEX(Actividad,SMALL(IF(Objetivo=$H$2,ROW(Actividad)-MIN(ROW(Actividad))+1),ROWS($B$3:B91)))&CHAR(10),\"\")","v":""}]
[null,{"$f":"IFERROR(INDEX(Actividad,SMALL(IF(Objetivo=$B$2,ROW(Actividad)-MIN(ROW(Actividad))+1),ROWS($B$3:B92)))&\" \"&CHAR(10)&(INDEX(Resultado,SMALL(IF(Objetivo=$B$2,ROW(Resultado)-MIN(ROW(Resultado))+1),ROWS($B$3:B92))))&CHAR(10),\"\")","v":""},null,{"$f":"IFERROR(INDEX(Actividad,SMALL(IF(Objetivo=$D$2,ROW(Actividad)-MIN(ROW(Actividad))+1),ROWS($B$3:B92)))&CHAR(10),\"\")","v":""},null,{"$f":"IFERROR(INDEX(Actividad,SMALL(IF(Objetivo=$F$2,ROW(Actividad)-MIN(ROW(Actividad))+1),ROWS($B$3:B92)))&CHAR(10),\"\")","v":""},null,{"$f":"IFERROR(INDEX(Actividad,SMALL(IF(Objetivo=$H$2,ROW(Actividad)-MIN(ROW(Actividad))+1),ROWS($B$3:B92)))&CHAR(10),\"\")","v":""}]
[null,{"$f":"IFERROR(INDEX(Actividad,SMALL(IF(Objetivo=$B$2,ROW(Actividad)-MIN(ROW(Actividad))+1),ROWS($B$3:B93)))&\" \"&CHAR(10)&(INDEX(Resultado,SMALL(IF(Objetivo=$B$2,ROW(Resultado)-MIN(ROW(Resultado))+1),ROWS($B$3:B93))))&CHAR(10),\"\")","v":""},null,{"$f":"IFERROR(INDEX(Actividad,SMALL(IF(Objetivo=$D$2,ROW(Actividad)-MIN(ROW(Actividad))+1),ROWS($B$3:B93)))&CHAR(10),\"\")","v":""},null,{"$f":"IFERROR(INDEX(Actividad,SMALL(IF(Objetivo=$F$2,ROW(Actividad)-MIN(ROW(Actividad))+1),ROWS($B$3:B93)))&CHAR(10),\"\")","v":""},null,{"$f":"IFERROR(INDEX(Actividad,SMALL(IF(Objetivo=$H$2,ROW(Actividad)-MIN(ROW(Actividad))+1),ROWS($B$3:B93)))&CHAR(10),\"\")","v":""}]
[null,{"$f":"IFERROR(INDEX(Actividad,SMALL(IF(Objetivo=$B$2,ROW(Actividad)-MIN(ROW(Actividad))+1),ROWS($B$3:B94)))&\" \"&CHAR(10)&(INDEX(Resultado,SMALL(IF(Objetivo=$B$2,ROW(Resultado)-MIN(ROW(Resultado))+1),ROWS($B$3:B94))))&CHAR(10),\"\")","v":""},null,{"$f":"IFERROR(INDEX(Actividad,SMALL(IF(Objetivo=$D$2,ROW(Actividad)-MIN(ROW(Actividad))+1),ROWS($B$3:B94)))&CHAR(10),\"\")","v":""},null,{"$f":"IFERROR(INDEX(Actividad,SMALL(IF(Objetivo=$F$2,ROW(Actividad)-MIN(ROW(Actividad))+1),ROWS($B$3:B94)))&CHAR(10),\"\")","v":""},null,{"$f":"IFERROR(INDEX(Actividad,SMALL(IF(Objetivo=$H$2,ROW(Actividad)-MIN(ROW(Actividad))+1),ROWS($B$3:B94)))&CHAR(10),\"\")","v":""}]
[null,{"$f":"IFERROR(INDEX(Actividad,SMALL(IF(Objetivo=$B$2,ROW(Actividad)-MIN(ROW(Actividad))+1),ROWS($B$3:B95)))&\" \"&CHAR(10)&(INDEX(Resultado,SMALL(IF(Objetivo=$B$2,ROW(Resultado)-MIN(ROW(Resultado))+1),ROWS($B$3:B95))))&CHAR(10),\"\")","v":""},null,{"$f":"IFERROR(INDEX(Actividad,SMALL(IF(Objetivo=$D$2,ROW(Actividad)-MIN(ROW(Actividad))+1),ROWS($B$3:B95)))&CHAR(10),\"\")","v":""},null,{"$f":"IFERROR(INDEX(Actividad,SMALL(IF(Objetivo=$F$2,ROW(Actividad)-MIN(ROW(Actividad))+1),ROWS($B$3:B95)))&CHAR(10),\"\")","v":""},null,{"$f":"IFERROR(INDEX(Actividad,SMALL(IF(Objetivo=$H$2,ROW(Actividad)-MIN(ROW(Actividad))+1),ROWS($B$3:B95)))&CHAR(10),\"\")","v":""}]
[null,{"$f":"IFERROR(INDEX(Actividad,SMALL(IF(Objetivo=$B$2,ROW(Actividad)-MIN(ROW(Actividad))+1),ROWS($B$3:B96)))&\" \"&CHAR(10)&(INDEX(Resultado,SMALL(IF(Objetivo=$B$2,ROW(Resultado)-MIN(ROW(Resultado))+1),ROWS($B$3:B96))))&CHAR(10),\"\")","v":""},null,{"$f":"IFERROR(INDEX(Actividad,SMALL(IF(Objetivo=$D$2,ROW(Actividad)-MIN(ROW(Actividad))+1),ROWS($B$3:B96)))&CHAR(10),\"\")","v":""},null,{"$f":"IFERROR(INDEX(Actividad,SMALL(IF(Objetivo=$F$2,ROW(Actividad)-MIN(ROW(Actividad))+1),ROWS($B$3:B96)))&CHAR(10),\"\")","v":""},null,{"$f":"IFERROR(INDEX(Actividad,SMALL(IF(Objetivo=$H$2,ROW(Actividad)-MIN(ROW(Actividad))+1),ROWS($B$3:B96)))&CHAR(10),\"\")","v":""}]
[null,{"$f":"IFERROR(INDEX(Actividad,SMALL(IF(Objetivo=$B$2,ROW(Actividad)-MIN(ROW(Actividad))+1),ROWS($B$3:B97)))&\" \"&CHAR(10)&(INDEX(Resultado,SMALL(IF(Objetivo=$B$2,ROW(Resultado)-MIN(ROW(Resultado))+1),ROWS($B$3:B97))))&CHAR(10),\"\")","v":""},null,{"$f":"IFERROR(INDEX(Actividad,SMALL(IF(Objetivo=$D$2,ROW(Actividad)-MIN(ROW(Actividad))+1),ROWS($B$3:B97)))&CHAR(10),\"\")","v":""},null,{"$f":"IFERROR(INDEX(Actividad,SMALL(IF(Objetivo=$F$2,ROW(Actividad)-MIN(ROW(Actividad))+1),ROWS($B$3:B97)))&CHAR(10),\"\")","v":""},null,{"$f":"IFERROR(INDEX(Actividad,SMALL(IF(Objetivo=$H$2,ROW(Actividad)-MIN(ROW(Actividad))+1),ROWS($B$3:B97)))&CHAR(10),\"\")","v":""}]
[null,{"$f":"IFERROR(INDEX(Actividad,SMALL(IF(Objetivo=$B$2,ROW(Actividad)-MIN(ROW(Actividad))+1),ROWS($B$3:B98)))&\" \"&CHAR(10)&(INDEX(Resultado,SMALL(IF(Objetivo=$B$2,ROW(Resultado)-MIN(ROW(Resultado))+1),ROWS($B$3:B98))))&CHAR(10),\"\")","v":""},null,{"$f":"IFERROR(INDEX(Actividad,SMALL(IF(Objetivo=$D$2,ROW(Actividad)-MIN(ROW(Actividad))+1),ROWS($B$3:B98)))&CHAR(10),\"\")","v":""},null,{"$f":"IFERROR(INDEX(Actividad,SMALL(IF(Objetivo=$F$2,ROW(Actividad)-MIN(ROW(Actividad))+1),ROWS($B$3:B98)))&CHAR(10),\"\")","v":""},null,{"$f":"IFERROR(INDEX(Actividad,SMALL(IF(Objetivo=$H$2,ROW(Actividad)-MIN(ROW(Actividad))+1),ROWS($B$3:B98)))&CHAR(10),\"\")","v":""}]
[null,{"$f":"IFERROR(INDEX(Actividad,SMALL(IF(Objetivo=$B$2,ROW(Actividad)-MIN(ROW(Actividad))+1),ROWS($B$3:B99)))&\" \"&CHAR(10)&(INDEX(Resultado,SMALL(IF(Objetivo=$B$2,ROW(Resultado)-MIN(ROW(Resultado))+1),ROWS($B$3:B99))))&CHAR(10),\"\")","v":""},null,{"$f":"IFERROR(INDEX(Actividad,SMALL(IF(Objetivo=$D$2,ROW(Actividad)-MIN(ROW(Actividad))+1),ROWS($B$3:B99)))&CHAR(10),\"\")","v":""},null,{"$f":"IFERROR(INDEX(Actividad,SMALL(IF(Objetivo=$F$2,ROW(Actividad)-MIN(ROW(Actividad))+1),ROWS($B$3:B99)))&CHAR(10),\"\")","v":""},null,{"$f":"IFERROR(INDEX(Actividad,SMALL(IF(Objetivo=$H$2,ROW(Actividad)-MIN(ROW(Actividad))+1),ROWS($B$3:B99)))&CHAR(10),\"\")","v":""}]
[null,{"$f":"IFERROR(INDEX(Actividad,SMALL(IF(Objetivo=$B$2,ROW(Actividad)-MIN(ROW(Actividad))+1),ROWS($B$3:B100)))&\" \"&CHAR(10)&(INDEX(Resultado,SMALL(IF(Objetivo=$B$2,ROW(Resultado)-MIN(ROW(Resultado))+1),ROWS($B$3:B100))))&CHAR(10),\"\")","v":""},null,{"$f":"IFERROR(INDEX(Actividad,SMALL(IF(Objetivo=$D$2,ROW(Actividad)-MIN(ROW(Actividad))+1),ROWS($B$3:B100)))&CHAR(10),\"\")","v":""},null,{"$f":"IFERROR(INDEX(Actividad,SMALL(IF(Objetivo=$F$2,ROW(Actividad)-MIN(ROW(Actividad))+1),ROWS($B$3:B100)))&CHAR(10),\"\")","v":""},null,{"$f":"IFERROR(INDEX(Actividad,SMALL(IF(Objetivo=$H$2,ROW(Actividad)-MIN(ROW(Actividad))+1),ROWS($B$3:B100)))&CHAR(10),\"\")","v":""}]

{"sheet":"Información","index":2,"n_rows":6,"n_cols":1,"rows_kept":6}
["Información acerca de este libro"]
["Instrucciones para lectores de pantalla"]
["Hay tres hojas de cálculo en este libro. \n\nDatos del plan de desarrollo\nPlan de desarrollo ágil\nInformación\n\nLas instrucciones de las hojas de cálculo se encuentran en la columna A de cada hoja, a partir de la celda A1. Están escritas con texto oculto. Cada paso le guiará a través de la información de esa fila. Los pasos posteriores continúan en la celda A2, A3, y así sucesivamente, a menos que se indique de forma explícita. Por ejemplo, el texto de una instrucción podría ser “Vaya a la celda A6” para continuar con el siguiente paso. \n\nEl texto oculto no se imprimirá.\n\nPara quitar las instrucciones de cualquier hoja de cálculo, basta con eliminar la columna A.\n"]
["Información acerca de este libro"]
["Escriba la información de los hitos en la hoja de cálculo Datos del plan de desarrollo.  Asegúrese de ordenar por prioridad y, después, por hito para mostrar las vistas Completado, Actual, A corto plazo y Futuro en orden de prioridad decreciente, con los elementos de prioridad más alta en la parte superior. El plan de desarrollo de la hoja de cálculo Plan de desarrollo ágil se actualiza automáticamente.\n"]
["Esta es la última instrucción de esta hoja de cálculo."]